{"text_format":"1","workbook":"xlsx","n_sheets":4,"sheets":["INSTRUÇÕES (Leia-me)","1 - Preenchimento do plano","2 - Plano para impressão","3 - Justificativa membro ext."],"not_rendered":{"charts":0,"images":3,"macros":1,"external_links":0,"defined_names":4,"comments":0,"pivot_tables":0},"unopened":[],"bounds":{"document_bytes":16777216,"sheet_cells":100000,"rows_first":2000,"rows_last":500,"rows_between":2000,"halvings":0,"cell_chars":16384,"cell_head_chars":4096},"cells_cut":0,"cells_raw":0,"read":"whole","date_system":"1900"}

{"sheet":"INSTRUÇÕES (Leia-me)","index":0,"n_rows":0,"n_cols":0,"rows_kept":0,"cut":false,"hidden":false,"merged":[]}

{"sheet":"1 - Preenchimento do plano","index":1,"n_rows":128,"n_cols":28,"rows_kept":128,"cut":false,"hidden":false,"merged":[[109,8,109,12],[94,2,94,12],[8,5,8,10],[9,8,9,10],[10,8,10,10],[104,8,104,12],[105,8,105,12],[106,8,106,12],[107,8,107,12],[108,8,108,12],[99,8,99,12],[100,8,100,12],[101,8,101,12],[102,8,102,12],[103,8,103,12],[95,8,95,12],[104,3,104,7],[97,3,97,7],[98,3,98,7],[99,3,99,7],[100,3,100,7],[101,3,101,7],[102,3,102,7],[103,3,103,7],[10,20,10,21],[11,20,11,21],[96,8,96,12],[97,8,97,12],[98,8,98,12],[10,1,10,2],[1,1,5,20],[109,3,109,7],[95,3,95,7],[9,5,9,7],[10,5,10,7],[108,3,108,7],[106,3,106,7],[105,3,105,7],[96,3,96,7],[107,3,107,7],[12,20,12,21],[13,20,13,21],[7,20,7,21],[8,20,8,21],[9,20,9,21],[110,3,110,7],[122,3,122,4],[127,3,127,4],[118,3,118,4],[119,3,119,4],[120,3,120,4],[123,3,123,4],[125,3,125,4],[121,3,121,4],[113,3,113,4],[115,3,115,4],[114,3,114,4],[116,3,116,4],[117,3,117,4],[124,3,124,4]]}
[]
[null,"INSTRUÇÕES PARA PREENCHIMENTO: Só é permitido o preenchimento nas células em amarelo. Ao selecionar a célula, informações sobre o preenchimento serão mostradas em caixas de texto. Inconsistências ou erros serão mostrados em alertas em vermelho. Após o preenchimento, conferir no fim da planilhaília para verificação final no Quadro de verificações. Caso tudo estiver correto, abrir a planília \"plano para impressão\" para imprimir o documento para assinatura. Se o terceiro membro do comitê de orientação for externo à UDESC, preencher também a planilia \"3-Justificativa membro ext.\" para assinatura e entrega anexa ao plano."]
[]
[]
[]
[]
[]
[null,"NOME:",null,null,null,null,null,null,null,null,null,null,null,null,null,{"$f":"ISBLANK(C8)","v":true},{"$f":"N(P8)","v":1},null,null,null,{"$f":"IF(Q8=0,\"\",\"preencher nome\")","v":"preencher nome"}]
[null,"MATRÍCULA:",null,null,null,"INGRESSO NO CURSO",null,null,null,null,null,null,null,null,null,{"$f":"ISBLANK(C9)","v":true},{"$f":"N(P9)","v":1},null,null,null,{"$f":"IF(Q9=0,\"\",\"preencher matrícula\")","v":"preencher matrícula"}]
[null,null,null,null,null,"Ano:",null,null,null,null,null,null,null,null,null,{"$f":"ISBLANK(I10)","v":true},1,null,null,null,{"$f":"IF(Q10=0,\"\",\"preencher ano\")","v":"preencher ano"},null,null,null,null,null,null,{"$f":"I10","v":0}]
[null,"COMITÊ DE ORIENTAÇÃO",null,null,null,"Semestre:",null,null,null,null,null,null,null,null,null,{"$f":"ISBLANK(I11)","v":true},1,null,null,null,{"$f":"IF(Q11=0,\"\",\"preencher semestre\")","v":"preencher semestre"},null,null,null,null,null,null,{"$f":"I11","v":0}]
[null,"Orientador:",null,null,null,null,null,null,null,null,null,null,null,null,null,{"$f":"ISBLANK(C12)","v":true},1,null,null,null,{"$f":"IF(Q12=0,\"\",\"preencher orientador\")","v":"preencher orientador"}]
[null,"2º Membro:",null,null,null,null,null,null,null,null,null,null,null,null,null,{"$f":"ISBLANK(C13)","v":true},1,null,null,null,{"$f":"IF(Q13=0,\"\",\"preencher orientador substituto\")","v":"preencher orientador substituto"}]
[null,"3º Membro:",null,null,null,null,null,null,null,null,null,null,null,null,null,{"$f":"ISBLANK(C14)","v":true},1,null,null,null,{"$f":"IF(Q14=0,\"\",\"preencher membro do comitê\")","v":"preencher membro do comitê"}]
[]
[null,null,null,"Carga Horária","Créditos","Semestre 1","Semestre 2","Semestre 3","Semestre 4","Semestre 5","Semestre 6","Semestre 7","Semestre 8","Aproveitamento ou Validação","dispensa de ESTDOC, INGLES e ESPAN",null,null,null,"creditos obtidos",null,"STATUS"]
[]
[null,"Código","DISCIPLINAS OBRIGATÓRIAS"]
[null,"QSO020","Química do Solo",60,4,null,null,null,null,null,null,null,null,null,null,{"$f":"SUM(F19:N19)","v":0},{"$f":"SUM(F19:N19)","v":0},null,{"$f":"P19*E19","v":0},null,{"$f":"IF(Q19=1,\"OK\",\"não\")","v":"não"}]
[null,"FIS030","Física do Solo",60,4,null,null,null,null,null,null,null,null,null,null,{"$f":"SUM(F20:N20)","v":0},0,null,0,null,{"$f":"IF(Q20=1,\"OK\",\"não\")","v":"não"}]
[null,"GMS010","Gênese, Morfologia e Classificação de Solos",60,4,null,null,null,null,null,null,null,null,null,null,0,0,null,0,null,"não"]
[null,"BIO060","Biologia do Solo",60,4,null,null,null,null,null,null,null,null,null,null,{"$f":"SUM(F22:N22)","v":0},0,null,0,null,"não"]
[null,"MCP050","Metodologia Científica e da Pesquisa",30,2,null,null,null,null,null,null,null,null,null,null,0,0,null,0,null,"não"]
[null,"SEMPMS","Seminarios - Presença",30,0,null,null,null,null,null,null,null,null,null,null,{"$f":"SUM(F24:M24)","v":0},0,null,0,null,"não"]
[null,"SEM200","Seminários - Apresentador (I)",30,2,null,null,null,null,null,null,null,null,null,null,{"$f":"SUM(F25:M25)","v":0},0,null,0,null,"não"]
[null,"SEM200","Seminários - Apresentador (II)",30,2,null,null,null,null,null,null,null,null,null,null,0,0,null,0,null,"não"]
[null,"ESTDOC","Estágio em docência (I)",30,2,null,null,null,null,null,null,null,null,null,null,{"$f":"SUM(F27:O27)","v":0},{"$f":"SUM(F27+G27+H27+I27+J27+K27+L27+M27+O27)","v":0},null,0,null,"não"]
[null,"ESTDOC","Estágio em docência (II)",30,2,null,null,null,null,null,null,null,null,null,null,{"$f":"SUM(F28:O28)","v":0},{"$f":"SUM(F28+G28+H28+I28+J28+K28+L28+M28+O28)","v":0},null,0,null,"não"]
[null,"ESPAN","Exame de proficiência em Língua Espanhola",0,0,null,null,null,null,null,null,null,null,null,null,0,0,null,0,null,"não"]
[null,"INGLES","Exame de proficiência em Língua Inglesa",0,0,null,null,null,null,null,null,null,null,null,null,0,0,null,0,null,"não"]
[]
[null,null,null,null,null,null,null,null,null,null,null,null,null,null,null,null,{"$f":"SUM(Q19:Q30)","v":0},null,{"$f":"SUM(S19:S30)","v":0}]
[]
[null,"Código","DISCIPLINAS DA ÁREA DE CONCENTRAÇÃO"]
[null,"ASISPA","Água no Sistema Solo-Planta-Atmosfera",60,4,null,null,null,null,null,null,null,null,null,null,{"$f":"SUM(F35:N35)","v":0},{"$f":"SUM(F35:N35)","v":0},null,{"$f":"P35*E35","v":0},null,{"$f":"IF(Q35=0,\"\",IF(Q35=1,\"OK\",IF(Q35>1,\"não\")))","v":""}]
[null,"BRA140","Biodegradação de Resíduos Agrícolas e Industriais",60,4,null,null,null,null,null,null,null,null,null,null,{"$f":"SUM(F36:N36)","v":0},{"$f":"SUM(F36:N36)","v":0},null,{"$f":"P36*E36","v":0},null,{"$f":"IF(Q36=0,\"\",IF(Q36=1,\"OK\",IF(Q36>1,\"não\")))","v":""}]
[null,"ETOPOI","Ecotoxicologia de Poluentes Inorgânicos ",30,2,null,null,null,null,null,null,null,null,null,null,{"$f":"SUM(F37:N37)","v":0},{"$f":"SUM(F37:N37)","v":0},null,{"$f":"P37*E37","v":0},null,{"$f":"IF(Q37=0,\"\",IF(Q37=1,\"OK\",IF(Q37>1,\"não\")))","v":""}]
[null,"FER040","Fertilidade do Solo",60,4,null,null,null,null,null,null,null,null,null,null,{"$f":"SUM(F38:N38)","v":0},0,null,0,null,""]
[null,"FIVEMS","Fisiologia Vegetal",60,4,null,null,null,null,null,null,null,null,null,null,0,0,null,0,null,""]
[null,"HIDROL","Hidrologia",60,4,null,null,null,null,null,null,null,null,null,null,{"$f":"SUM(F40:N40)","v":0},{"$f":"SUM(F40:N40)","v":0},null,{"$f":"P40*E40","v":0},null,""]
[null,"LSO120","Levantamento de Solos",60,4,null,null,null,null,null,null,null,null,null,null,0,0,null,0,null,""]
[null,"MSO010","Manejo do Solo",60,4,null,null,null,null,null,null,null,null,null,null,0,0,null,0,null,""]
[null,"MAMBIS","Métodos de Análise em Microbiologia e Bioquímica do Solo",60,4,null,null,null,null,null,null,null,null,null,null,0,0,null,0,null,""]
[null,"MATORS","Matéria Orgânica do Solo",60,4,null,null,null,null,null,null,null,null,null,null,{"$f":"SUM(F44:N44)","v":0},{"$f":"SUM(F44:N44)","v":0},null,0,null,""]
[null,"MINSOL","Mineralogia do Solo",30,2,null,null,null,null,null,null,null,null,null,null,0,0,null,0,null,""]
[null,"RECADE","Recuperação de Áreas Degradadas",60,4,null,null,null,null,null,null,null,null,null,null,{"$f":"SUM(F46:N46)","v":0},{"$f":"SUM(F46:N46)","v":0},null,{"$f":"P46*E46","v":0},null,""]
[null,"REPLAM","Relação Planta Microrganismos",60,4,null,null,null,null,null,null,null,null,null,null,0,0,null,0,null,""]
[null,"RESOLP","Relação Solo-Planta",30,2,null,null,null,null,null,null,null,null,null,null,0,0,null,0,null,""]
[null,"UCS070","Uso e Conservação do Solo",60,4,null,null,null,null,null,null,null,null,null,null,0,0,null,0,null,""]
[null,"TST170","Técnicas de Análise Química de Solo e Tecido Vegetal",60,4,null,null,null,null,null,null,null,null,null,null,0,0,null,0,null,""]
[null,"TES160","Tópicos Especiais em Ciência do Solo",30,2,null,null,null,null,null,null,null,null,null,null,{"$f":"SUM(F51:N51)","v":0},{"$f":"SUM(F51:N51)","v":0},null,{"$f":"P51*E51","v":0},null,{"$f":"IF(Q51=0,\"\",\"OK\")","v":""}]
[null,"TESAED","TECS - Análise Estatística de Dados Utilizando o Programa SAS",30,2,null,null,null,null,null,null,null,null,null,null,{"$f":"SUM(F52:N52)","v":0},{"$f":"SUM(F52:N52)","v":0},null,{"$f":"P52*E52","v":0},null,""]
[null,"TESBSO","TECS - Biologia do Solo",30,2,null,null,null,null,null,null,null,null,null,null,{"$f":"SUM(F53:N53)","v":0},{"$f":"SUM(F53:N53)","v":0},null,{"$f":"P53*E53","v":0}]
[null,"TESDFS","TECS - Dinâmica de fósforo no solo e ambiente",30,2,null,null,null,null,null,null,null,null,null,null,{"$f":"SUM(F54:N54)","v":0},{"$f":"SUM(F54:N54)","v":0},null,0]
[null,"TESEAC","TECS - Estatística Aplicada ao Estudo de Caso",30,2,null,null,null,null,null,null,null,null,null,null,0,0,null,0]
[null,"TESETN","TECS - Etnopedologia",30,2,null,null,null,null,null,null,null,null,null,null,0,0,null,0]
[null,"TECSPR","TECS - Extensão Universitária em C. A.agrárias - Projeto Rondon",30,2,null,null,null,null,null,null,null,null,null,null,0,0,null,0]
[null,"TESFAE","TECS - Fauna Edáfica",30,2,null,null,null,null,null,null,null,null,null,null,0,0,null,0]
[null,"TESFIS","TECS - Física do Solo",30,2,null,null,null,null,null,null,null,null,null,null,0,0,null,0]
[null,"TESFIC","TECS - Física /Compactação",30,2,null,null,null,null,null,null,null,null,null,null,0,0,null,0]
[null,"TESGMP","TECS - Geoquímica de Metais Pesados",30,2,null,null,null,null,null,null,null,null,null,null,0,0,null,0]
[null,"TESGMM","TECS - Geoquímica de Metais Pesados e Metalóides",30,2,null,null,null,null,null,null,null,null,null,null,0,0,null,0]
[null,"TESHDR","TECS -Hidrologia",30,2,null,null,null,null,null,null,null,null,null,null,0,0,null,0]
[null,"TESLCS","TECS - Levantamento e Classificação do Solo",30,2,null,null,null,null,null,null,null,null,null,null,0,0,null,0]
[null,"TESMAB","TECS - Métodos Analíticos de Biologia do Solo",30,2,null,null,null,null,null,null,null,null,null,null,0,0,null,0]
[null,"TESMAM","TECS - Métodos Analíticos em Microbiologia do Solo",30,2,null,null,null,null,null,null,null,null,null,null,0,0,null,0]
[null,"TESMIA","TECS - Mineralogia das Argilas",30,2,null,null,null,null,null,null,null,null,null,null,0,0,null,0]
[null,"TESMIS","TECS - Mineralogia do Solo",30,2,null,null,null,null,null,null,null,null,null,null,0,0,null,0]
[null,"TESNIQ","TECS - Nivelamento em Química",30,2,null,null,null,null,null,null,null,null,null,null,0,0,null,0]
[null,"TESNMF","TECS - Nutrição Mineral de Frutíferas",30,2,null,null,null,null,null,null,null,null,null,null,0,0,null,0]
[null,"TESPEH","TECS - Pesquisas em Erosão Hídrica",30,2,null,null,null,null,null,null,null,null,null,null,0,0,null,0]
[null,"TESTPE","TECS - Técnicas de Pesquisa em Erosão",30,2,null,null,null,null,null,null,null,null,null,null,0,0,null,0]
[null,"TESTRT","TECS - Técnicas de Redação e de Apresentação de Trabalhos Científicos",30,2,null,null,null,null,null,null,null,null,null,null,0,0,null,0]
[null,"TESUCS","TECS - Uso e Conservação do Solo",30,2,null,null,null,null,null,null,null,null,null,null,0,0,null,0]
[null,"TCSADE","TECS (Análise de Dados em Ecologia - Modelos Lineares General.)",30,2,null,null,null,null,null,null,null,null,null,null,0,0,null,0]
[null,"TECSAP","TECS - Aplicada à Produção Florestal",30,2,null,null,null,null,null,null,null,null,null,null,0,0,null,0]
[null,"TESARC","TECS -  Avaliação de Risco Ecológico de Locais Contaminados",30,2,null,null,null,null,null,null,null,null,null,null,{"$f":"SUM(F77:N77)","v":0},{"$f":"SUM(F77:N77)","v":0},null,{"$f":"P77*E77","v":0}]
[null,"TESEAR","TECS - Ecotoxicologia e Análise de Risco Ecológico",30,2,null,null,null,null,null,null,null,null,null,null,0,0,null,0]
[null,"TCSUEM","TECS - A Utilização de Ensaios em Mesocosmos como Ferram...",30,2,null,null,null,null,null,null,null,null,null,null,0,0,null,0]
[null,"TESMAF","TECS - Métodos de Análises Físicas",30,2,null,null,null,null,null,null,null,null,null,null,0,0,null,0]
[null,null,null,null,null,null,null,null,null,null,null,null,null,null,null,null,null,null,{"$f":"SUM(S35:S80)","v":0}]
[]
[null,"Código","DISCIPLINAS DE FORMAÇÃO COMPLEMENTAR"]
[null,"ESTATI","Estatística - Nivelamento",30,2,null,null,null,null,null,null,null,null,null,null,{"$f":"SUM(F84:N84)","v":0},{"$f":"SUM(F84:N84)","v":0},null,{"$f":"P84*E84","v":0},null,{"$f":"IF(Q84=0,\"\",IF(Q84=1,\"OK\",IF(Q84>1,\"não\")))","v":""}]
[null,"REDATC","Redação e Apresentação de Trabalhos Científicos",30,2,null,null,null,null,null,null,null,null,null,null,0,{"$f":"SUM(F85:N85)","v":0},null,0,null,""]
[null,"ESTEAM","Estatística Experimental e Análise Multivariada",60,4,null,null,null,null,null,null,null,null,null,null,0,0,null,0,null,""]
[null,"FMAPLA","Fundamentos do Manejo de Plantas de Lavoura",60,4,null,null,null,null,null,null,null,null,null,null,0,0,null,0,null,""]
[null,"METENS","Metodologia do Ensino Superior",60,4,null,null,null,null,null,null,null,null,null,null,0,0,null,0,null,""]
[null,"MOBAPA","Modelos Biométricos Aplicados à Agronomia",60,4,null,null,null,null,null,null,null,null,null,null,0,0,null,0,null,""]
[null,null,null,null,null,null,null,null,null,null,null,null,null,null,null,null,null,null,{"$f":"SUM(S84:S89)","v":0}]
[]
[null,"Código","DISCIPLINA PARA MANTER-SE MATRICULADO NO CURSO"]
[null,"TESDMS","Tese de Doutorado",0,0,null,null,null,null,null,null,null,null,null,null,null,null,null,0]
[]
[null,null,"DISCIPLINAS COM OUTRAS NOMENCLATURAS CURSADAS EM OUTROS PPG´s A SEREM VALIDADAS"]
[null,null,"Nome da disciplina","número de créditos",null,null,null,null,"É da área de solos?"]
[null,null,null,null,null,null,null,null,null,null,null,null,null,null,null,{"$f":"IF(I97=1,\"1\",\"0\")","v":"0"},{"$f":"P97*D97","v":0},{"$f":"D97","v":0},{"$f":"D97","v":0},null,{"$f":"IF(R97=0,\"\",IF(R97>0,\"OK\"))","v":""}]
[null,null,null,null,null,null,null,null,null,null,null,null,null,null,null,"0",{"$f":"P98*D98","v":0},null,{"$f":"D98","v":0}]
[null,null,null,null,null,null,null,null,null,null,null,null,null,null,null,"0",0,null,0]
[null,null,null,null,null,null,null,null,null,null,null,null,null,null,null,"0",0,null,0]
[null,null,null,null,null,null,null,null,null,null,null,null,null,null,null,"0",0,null,0]
[null,null,null,null,null,null,null,null,null,null,null,null,null,null,null,"0",0,null,0]
[null,null,null,null,null,null,null,null,null,null,null,null,null,null,null,"0",0,null,0]
[null,null,null,null,null,null,null,null,null,null,null,null,null,null,null,"0",0,null,0]
[null,null,null,null,null,null,null,null,null,null,null,null,null,null,null,"0",0,null,0]
[null,null,null,null,null,null,null,null,null,null,null,null,null,null,null,"0",0,0,{"$f":"D106","v":0},null,""]
[null,null,null,null,null,null,null,null,null,null,null,null,null,null,null,"0",0,0,0,null,""]
[null,null,null,null,null,null,null,null,null,null,null,null,null,null,null,"0",0,0,0,null,""]
[null,null,null,null,null,null,null,null,null,null,null,null,null,null,null,"0",0,0,0,null,""]
[null,null,null,null,null,null,null,null,null,null,null,null,null,null,null,"0",0,0,0,null,""]
[null,null,null,null,null,null,null,null,null,null,null,null,null,"Total créditos:",null,{"$f":"S32+S81+S90+S112","v":0},{"$f":"SUM(Q97:Q110)","v":0},null,{"$f":"P111","v":0}]
[null,null,null,null,{"$f":"IF(F19+F20+F21+F23+F24+F25+F26+F27+F28+F29+F30+F35+F36+F37+F38+F39+F40+F41+F42+F43+F44+F45+F46+F47+F48+F49+F50+F51+F52+F53+F55+F56+F57+F58+F59+F60+F61+F62+F63+F64+F65+F66+F67+F68+F69+F70+F71+F72+F73+F74+F75+F76+F80+F84+F85+F86+F87+F88+F89+F93>0,\"1\",\"0\")","v":"0"},"0","0","0","0","0","0","0",null,null,null,null,null,null,{"$f":"SUM(S97:S110)","v":0}]
[]
[null,null,"QUADRO DE VERIFICAÇÕES","STATUS"]
[null,null,"Foi preenchido o nome?",{"$f":"IF(Q8=0,\"OK\",\"não\")","v":"não"},null,null,null,null,null,null,null,null,null,null,null,{"$f":"N19*E19+N20*E20+N21*E21+N23*E23+N35*E35+N36*E36+N37*E37+N38*E38+N39*E39+N40*E40+N41*E41+N42*E42+N43*E43+N44*E44+N45*E45+N46*E46+N47*E47+N48*E48+N49*E49+N50*E50+N51*E51+N52*E52++N53*E53+N55*E55+N56*E56+N57*E57+N58*E58+N59*E59+N60*E60+N61*E61+N62*E62+N63*E63+N64*E64+N65*E65+N66*E66+N67*E67+N68*E68+N69*E69+N70*E70+N71*E71+N72*E72+N73*E73+N74*E74+N75*E75+N76*E76+N80*E80+N84*E84+N85*E85+N86*E86+N87*E87+N88*E88+N89*E89+D97+D98+D99+D100+D101+D102+D103+D104+D105+D106+D107+D108+D109+D110","v":0},{"$f":"N(D115=\"OK\")","v":0}]
[null,null,"Foi preenchido o número de matrícula?",{"$f":"IF(Q9=0,\"OK\",\"não\")","v":"não"},null,null,null,null,null,null,null,null,null,null,null,null,0]
[null,null,"O Ano e semestre de ingresso foi preenchido?",{"$f":"IF(Q10+Q11=0,\"OK\",\"não\")","v":"não"},null,null,null,null,null,null,null,null,null,null,null,null,0]
[null,null,"O comitê de orientação está preenchido?",{"$f":"IF(Q12+Q13+Q14=0,\"OK\",\"não\")","v":"não"},null,null,null,null,null,null,null,null,null,null,null,{"$f":"Q29+Q30","v":0},0]
[null,null,"Previu todas disciplinas obrigatórias da área de solos?",{"$f":"IF(P119=11,\"OK\",\"não\")","v":"não"},null,null,null,null,null,null,null,null,null,null,null,{"$f":"Q19+Q20+Q21+Q23+Q24+Q25+Q26+Q27+Q28+Q29+Q30","v":0},0]
[null,null,"Previu adequadamente SEMPMS e SEM200?",{"$f":"IF(P120=3,\"OK\",\"não\")","v":"não"},null,null,null,null,null,null,null,null,null,null,null,{"$f":"Q25+Q24+Q26","v":0},0]
[null,null,"Previu adequadamente MCP050 e ESTDOC?",{"$f":"IF(P121=3,\"OK\",\"não\")","v":"não"},null,null,null,null,null,null,null,null,null,null,null,{"$f":"Q23+Q27+Q28","v":0},0]
[null,null,"Previu exames de proeficiência em língua estrangeira?",{"$f":"IF(P118=2,\"OK\",\"não\")","v":"não"},null,null,null,null,null,null,null,null,null,null,null,{"$f":"S19+S20+S21+S25+S26+S35+S36+S37+S38+S39+S40+S41+S42+S43+S44+S45+S46+S47+S48+S49+S50+S51+S52+S53+S55+S56+S57+S58+S59+S60+S61+S62+S63+S64+S65+S66+S67+S68+S69+S70+S71+S72+S73+S74+S75+S76+S80+Q111","v":0},0]
[null,null,"Disciplinas aproveitadas/validadas somam até 24 créditos?",{"$f":"IF(P115<25,\"OK\",\"não\")","v":"OK"},null,null,null,null,null,null,null,null,null,null,null,null,1]
[null,null,"Previu no mínimo 48 créditos?",{"$f":"IF(P111>47,\"OK\",\"não\")","v":"não"},null,null,null,null,null,null,null,null,null,null,null,null,0]
[null,null,"Há 34 créditos na área de concentração de Ciência do Solo?",{"$f":"IF(P122>33,\"OK\",\"não\")","v":"não"},null,null,null,null,null,null,null,null,null,null,null,null,0]
[null,null,"Há matrícula em todos os semestres?",{"$f":"IF(E112+F112+G112+H112+I112+J112+K112+L112=8,\"OK\",\"não\")","v":"não"},null,null,null,null,null,null,null,null,null,null,null,null,{"$f":"N(D126=\"OK\")","v":0}]
[null,null,null,null,null,null,null,null,null,null,null,null,null,null,null,null,{"$f":"SUM(Q115:Q126)","v":1}]
[null,null,"IMPRIMIR PLANO?",{"$f":"IF(Q127=12,\"SIM\",\"NÃO\")","v":"NÃO"}]

{"sheet":"2 - Plano para impressão","index":2,"n_rows":621,"n_cols":10,"rows_kept":621,"cut":false,"hidden":false,"merged":[]}
[]
[]
[]
[]
[]
[]
[]
[]
[]
[]
[]
[]
[]
[]
[null,"Nome:",{"$f":"'1 - Preenchimento do plano'!C8","v":0},null,null,"Matrícula:",{"$f":"'1 - Preenchimento do plano'!C9","v":0}]
[]
[null,"Comitê de Orientação"]
[null,"Orientador:",{"$f":"'1 - Preenchimento do plano'!C12","v":0},null,null,"Ingresso:",{"$f":"'1 - Preenchimento do plano'!AB10","v":0},"/",{"$f":"'1 - Preenchimento do plano'!AB11","v":0}]
[null,"2º Membro:",{"$f":"'1 - Preenchimento do plano'!C13","v":0}]
[null,"3º Membro:",{"$f":"'1 - Preenchimento do plano'!C14","v":0}]
[]
[1,"SEMESTRE","DISCIPLINA",null,null,"CÓDIGO","CH",null,"CRÉDITOS",1]
[1,"DISCIPLINAS A SEREM CURSADAS DURANTE O CURSO",null,null,null,null,null,null,null,1]
[{"$f":"'1 - Preenchimento do plano'!F19","v":0},1,{"$f":"'1 - Preenchimento do plano'!C19","v":"Química do Solo"},null,null,{"$f":"'1 - Preenchimento do plano'!B19","v":"QSO020"},{"$f":"'1 - Preenchimento do plano'!D19","v":60},null,{"$f":"'1 - Preenchimento do plano'!S19","v":0},{"$f":"A24*B24","v":0}]
[{"$f":"'1 - Preenchimento do plano'!F20","v":0},1,{"$f":"'1 - Preenchimento do plano'!C20","v":"Física do Solo"},null,null,{"$f":"'1 - Preenchimento do plano'!B20","v":"FIS030"},{"$f":"'1 - Preenchimento do plano'!D20","v":60},null,{"$f":"'1 - Preenchimento do plano'!S20","v":0},{"$f":"A25*B25","v":0}]
[{"$f":"'1 - Preenchimento do plano'!F21","v":0},1,{"$f":"'1 - Preenchimento do plano'!C21","v":"Gênese, Morfologia e Classificação de Solos"},null,null,{"$f":"'1 - Preenchimento do plano'!B21","v":"GMS010"},{"$f":"'1 - Preenchimento do plano'!D21","v":60},null,{"$f":"'1 - Preenchimento do plano'!S21","v":0},0]
[{"$f":"'1 - Preenchimento do plano'!F23","v":0},1,{"$f":"'1 - Preenchimento do plano'!C23","v":"Metodologia Científica e da Pesquisa"},null,null,{"$f":"'1 - Preenchimento do plano'!B23","v":"MCP050"},{"$f":"'1 - Preenchimento do plano'!D23","v":30},null,{"$f":"'1 - Preenchimento do plano'!S23","v":0},0]
[{"$f":"'1 - Preenchimento do plano'!F24","v":0},1,{"$f":"'1 - Preenchimento do plano'!C24","v":"Seminarios - Presença"},null,null,{"$f":"'1 - Preenchimento do plano'!B24","v":"SEMPMS"},{"$f":"'1 - Preenchimento do plano'!D24","v":30},null,{"$f":"'1 - Preenchimento do plano'!S24","v":0},0]
[{"$f":"'1 - Preenchimento do plano'!F25","v":0},1,{"$f":"'1 - Preenchimento do plano'!C25","v":"Seminários - Apresentador (I)"},null,null,{"$f":"'1 - Preenchimento do plano'!B25","v":"SEM200"},{"$f":"'1 - Preenchimento do plano'!D25","v":30},null,{"$f":"'1 - Preenchimento do plano'!S25","v":0},0]
[{"$f":"'1 - Preenchimento do plano'!F26","v":0},1,{"$f":"'1 - Preenchimento do plano'!C26","v":"Seminários - Apresentador (II)"},null,null,{"$f":"'1 - Preenchimento do plano'!B26","v":"SEM200"},{"$f":"'1 - Preenchimento do plano'!D26","v":30},null,{"$f":"'1 - Preenchimento do plano'!S26","v":0},0]
[{"$f":"'1 - Preenchimento do plano'!F27","v":0},1,{"$f":"'1 - Preenchimento do plano'!C27","v":"Estágio em docência (I)"},null,null,{"$f":"'1 - Preenchimento do plano'!B27","v":"ESTDOC"},{"$f":"'1 - Preenchimento do plano'!D27","v":30},null,{"$f":"'1 - Preenchimento do plano'!S27","v":0},0]
[{"$f":"'1 - Preenchimento do plano'!F28","v":0},1,{"$f":"'1 - Preenchimento do plano'!C28","v":"Estágio em docência (II)"},null,null,{"$f":"'1 - Preenchimento do plano'!B28","v":"ESTDOC"},{"$f":"'1 - Preenchimento do plano'!D28","v":30},null,{"$f":"'1 - Preenchimento do plano'!S28","v":0},0]
[{"$f":"'1 - Preenchimento do plano'!F29","v":0},1,{"$f":"'1 - Preenchimento do plano'!C29","v":"Exame de proficiência em Língua Espanhola"},null,null,{"$f":"'1 - Preenchimento do plano'!B29","v":"ESPAN"},{"$f":"'1 - Preenchimento do plano'!D29","v":0},null,{"$f":"'1 - Preenchimento do plano'!S29","v":0},0]
[{"$f":"'1 - Preenchimento do plano'!F30","v":0},1,{"$f":"'1 - Preenchimento do plano'!C30","v":"Exame de proficiência em Língua Inglesa"},null,null,{"$f":"'1 - Preenchimento do plano'!B30","v":"INGLES"},{"$f":"'1 - Preenchimento do plano'!D30","v":0},null,{"$f":"'1 - Preenchimento do plano'!S30","v":0},0]
[{"$f":"'1 - Preenchimento do plano'!F35","v":0},1,{"$f":"'1 - Preenchimento do plano'!C35","v":"Água no Sistema Solo-Planta-Atmosfera"},null,null,{"$f":"'1 - Preenchimento do plano'!B35","v":"ASISPA"},{"$f":"'1 - Preenchimento do plano'!D35","v":60},null,{"$f":"'1 - Preenchimento do plano'!S35","v":0},0]
[{"$f":"'1 - Preenchimento do plano'!F36","v":0},1,{"$f":"'1 - Preenchimento do plano'!C36","v":"Biodegradação de Resíduos Agrícolas e Industriais"},null,null,{"$f":"'1 - Preenchimento do plano'!B36","v":"BRA140"},{"$f":"'1 - Preenchimento do plano'!D36","v":60},null,{"$f":"'1 - Preenchimento do plano'!S36","v":0},0]
[{"$f":"'1 - Preenchimento do plano'!#REF!","v":{"$error":"#REF!"}},1,{"$f":"'1 - Preenchimento do plano'!#REF!","v":{"$error":"#REF!"}},null,null,{"$f":"'1 - Preenchimento do plano'!#REF!","v":{"$error":"#REF!"}},{"$f":"'1 - Preenchimento do plano'!#REF!","v":{"$error":"#REF!"}},null,{"$f":"'1 - Preenchimento do plano'!#REF!","v":{"$error":"#REF!"}},{"$error":"#REF!"}]
[{"$f":"'1 - Preenchimento do plano'!F37","v":0},1,{"$f":"'1 - Preenchimento do plano'!C37","v":"Ecotoxicologia de Poluentes Inorgânicos "},null,null,{"$f":"'1 - Preenchimento do plano'!B37","v":"ETOPOI"},{"$f":"'1 - Preenchimento do plano'!D37","v":30},null,{"$f":"'1 - Preenchimento do plano'!S37","v":0},{"$f":"A38*B38","v":0}]
[{"$f":"'1 - Preenchimento do plano'!F38","v":0},1,{"$f":"'1 - Preenchimento do plano'!C38","v":"Fertilidade do Solo"},null,null,{"$f":"'1 - Preenchimento do plano'!B38","v":"FER040"},{"$f":"'1 - Preenchimento do plano'!D38","v":60},null,{"$f":"'1 - Preenchimento do plano'!S38","v":0},0]
[{"$f":"'1 - Preenchimento do plano'!F39","v":0},1,{"$f":"'1 - Preenchimento do plano'!C39","v":"Fisiologia Vegetal"},null,null,{"$f":"'1 - Preenchimento do plano'!B39","v":"FIVEMS"},{"$f":"'1 - Preenchimento do plano'!D39","v":60},null,{"$f":"'1 - Preenchimento do plano'!S39","v":0},0]
[{"$f":"'1 - Preenchimento do plano'!F40","v":0},1,{"$f":"'1 - Preenchimento do plano'!C40","v":"Hidrologia"},null,null,{"$f":"'1 - Preenchimento do plano'!B40","v":"HIDROL"},{"$f":"'1 - Preenchimento do plano'!D40","v":60},null,{"$f":"'1 - Preenchimento do plano'!S40","v":0},0]
[{"$f":"'1 - Preenchimento do plano'!F41","v":0},1,{"$f":"'1 - Preenchimento do plano'!C41","v":"Levantamento de Solos"},null,null,{"$f":"'1 - Preenchimento do plano'!B41","v":"LSO120"},{"$f":"'1 - Preenchimento do plano'!D41","v":60},null,{"$f":"'1 - Preenchimento do plano'!S41","v":0},0]
[{"$f":"'1 - Preenchimento do plano'!F42","v":0},1,{"$f":"'1 - Preenchimento do plano'!C42","v":"Manejo do Solo"},null,null,{"$f":"'1 - Preenchimento do plano'!B42","v":"MSO010"},{"$f":"'1 - Preenchimento do plano'!D42","v":60},null,{"$f":"'1 - Preenchimento do plano'!S42","v":0},0]
[{"$f":"'1 - Preenchimento do plano'!F43","v":0},1,{"$f":"'1 - Preenchimento do plano'!C43","v":"Métodos de Análise em Microbiologia e Bioquímica do Solo"},null,null,{"$f":"'1 - Preenchimento do plano'!B43","v":"MAMBIS"},{"$f":"'1 - Preenchimento do plano'!D43","v":60},null,{"$f":"'1 - Preenchimento do plano'!S43","v":0},0]
[{"$f":"'1 - Preenchimento do plano'!F44","v":0},1,{"$f":"'1 - Preenchimento do plano'!C44","v":"Matéria Orgânica do Solo"},null,null,{"$f":"'1 - Preenchimento do plano'!B44","v":"MATORS"},{"$f":"'1 - Preenchimento do plano'!D44","v":60},null,{"$f":"'1 - Preenchimento do plano'!S44","v":0},{"$f":"A45*B45","v":0}]
[{"$f":"'1 - Preenchimento do plano'!F45","v":0},1,{"$f":"'1 - Preenchimento do plano'!C45","v":"Mineralogia do Solo"},null,null,{"$f":"'1 - Preenchimento do plano'!B45","v":"MINSOL"},{"$f":"'1 - Preenchimento do plano'!D45","v":30},null,{"$f":"'1 - Preenchimento do plano'!S45","v":0},0]
[{"$f":"'1 - Preenchimento do plano'!F46","v":0},1,{"$f":"'1 - Preenchimento do plano'!C46","v":"Recuperação de Áreas Degradadas"},null,null,{"$f":"'1 - Preenchimento do plano'!B46","v":"RECADE"},{"$f":"'1 - Preenchimento do plano'!D46","v":60},null,{"$f":"'1 - Preenchimento do plano'!S46","v":0},0]
[{"$f":"'1 - Preenchimento do plano'!F47","v":0},1,{"$f":"'1 - Preenchimento do plano'!C47","v":"Relação Planta Microrganismos"},null,null,{"$f":"'1 - Preenchimento do plano'!B47","v":"REPLAM"},{"$f":"'1 - Preenchimento do plano'!D47","v":60},null,{"$f":"'1 - Preenchimento do plano'!S47","v":0},0]
[{"$f":"'1 - Preenchimento do plano'!F48","v":0},1,{"$f":"'1 - Preenchimento do plano'!C48","v":"Relação Solo-Planta"},null,null,{"$f":"'1 - Preenchimento do plano'!B48","v":"RESOLP"},{"$f":"'1 - Preenchimento do plano'!D48","v":30},null,{"$f":"'1 - Preenchimento do plano'!S48","v":0},0]
[{"$f":"'1 - Preenchimento do plano'!F49","v":0},1,{"$f":"'1 - Preenchimento do plano'!C49","v":"Uso e Conservação do Solo"},null,null,{"$f":"'1 - Preenchimento do plano'!B49","v":"UCS070"},{"$f":"'1 - Preenchimento do plano'!D49","v":60},null,{"$f":"'1 - Preenchimento do plano'!S49","v":0},0]
[{"$f":"'1 - Preenchimento do plano'!F50","v":0},1,{"$f":"'1 - Preenchimento do plano'!C50","v":"Técnicas de Análise Química de Solo e Tecido Vegetal"},null,null,{"$f":"'1 - Preenchimento do plano'!B50","v":"TST170"},{"$f":"'1 - Preenchimento do plano'!D50","v":60},null,{"$f":"'1 - Preenchimento do plano'!S50","v":0},0]
[{"$f":"'1 - Preenchimento do plano'!F51","v":0},1,{"$f":"'1 - Preenchimento do plano'!C51","v":"Tópicos Especiais em Ciência do Solo"},null,null,{"$f":"'1 - Preenchimento do plano'!B51","v":"TES160"},{"$f":"'1 - Preenchimento do plano'!D51","v":30},null,{"$f":"'1 - Preenchimento do plano'!S51","v":0},0]
[{"$f":"'1 - Preenchimento do plano'!F52","v":0},1,{"$f":"'1 - Preenchimento do plano'!C52","v":"TECS - Análise Estatística de Dados Utilizando o Programa SAS"},null,null,{"$f":"'1 - Preenchimento do plano'!B52","v":"TESAED"},{"$f":"'1 - Preenchimento do plano'!D52","v":30},null,{"$f":"'1 - Preenchimento do plano'!S52","v":0},0]
[{"$f":"'1 - Preenchimento do plano'!F53","v":0},1,{"$f":"'1 - Preenchimento do plano'!C53","v":"TECS - Biologia do Solo"},null,null,{"$f":"'1 - Preenchimento do plano'!B53","v":"TESBSO"},{"$f":"'1 - Preenchimento do plano'!D53","v":30},null,{"$f":"'1 - Preenchimento do plano'!S53","v":0},0]
[{"$f":"'1 - Preenchimento do plano'!F54","v":0},1,{"$f":"'1 - Preenchimento do plano'!C54","v":"TECS - Dinâmica de fósforo no solo e ambiente"},null,null,{"$f":"'1 - Preenchimento do plano'!B54","v":"TESDFS"},{"$f":"'1 - Preenchimento do plano'!D54","v":30},null,{"$f":"'1 - Preenchimento do plano'!S54","v":0},{"$f":"A55*B55","v":0}]
[{"$f":"'1 - Preenchimento do plano'!F55","v":0},1,{"$f":"'1 - Preenchimento do plano'!C55","v":"TECS - Estatística Aplicada ao Estudo de Caso"},null,null,{"$f":"'1 - Preenchimento do plano'!B55","v":"TESEAC"},{"$f":"'1 - Preenchimento do plano'!D55","v":30},null,{"$f":"'1 - Preenchimento do plano'!S55","v":0},0]
[{"$f":"'1 - Preenchimento do plano'!F56","v":0},1,{"$f":"'1 - Preenchimento do plano'!C56","v":"TECS - Etnopedologia"},null,null,{"$f":"'1 - Preenchimento do plano'!B56","v":"TESETN"},{"$f":"'1 - Preenchimento do plano'!D56","v":30},null,{"$f":"'1 - Preenchimento do plano'!S56","v":0},0]
[{"$f":"'1 - Preenchimento do plano'!F57","v":0},1,{"$f":"'1 - Preenchimento do plano'!C57","v":"TECS - Extensão Universitária em C. A.agrárias - Projeto Rondon"},null,null,{"$f":"'1 - Preenchimento do plano'!B57","v":"TECSPR"},{"$f":"'1 - Preenchimento do plano'!D57","v":30},null,{"$f":"'1 - Preenchimento do plano'!S57","v":0},0]
[{"$f":"'1 - Preenchimento do plano'!F58","v":0},1,{"$f":"'1 - Preenchimento do plano'!C58","v":"TECS - Fauna Edáfica"},null,null,{"$f":"'1 - Preenchimento do plano'!B58","v":"TESFAE"},{"$f":"'1 - Preenchimento do plano'!D58","v":30},null,{"$f":"'1 - Preenchimento do plano'!S58","v":0},0]
[{"$f":"'1 - Preenchimento do plano'!F59","v":0},1,{"$f":"'1 - Preenchimento do plano'!C59","v":"TECS - Física do Solo"},null,null,{"$f":"'1 - Preenchimento do plano'!B59","v":"TESFIS"},{"$f":"'1 - Preenchimento do plano'!D59","v":30},null,{"$f":"'1 - Preenchimento do plano'!S59","v":0},0]
[{"$f":"'1 - Preenchimento do plano'!F60","v":0},1,{"$f":"'1 - Preenchimento do plano'!C60","v":"TECS - Física /Compactação"},null,null,{"$f":"'1 - Preenchimento do plano'!B60","v":"TESFIC"},{"$f":"'1 - Preenchimento do plano'!D60","v":30},null,{"$f":"'1 - Preenchimento do plano'!S60","v":0},0]
[{"$f":"'1 - Preenchimento do plano'!F61","v":0},1,{"$f":"'1 - Preenchimento do plano'!C61","v":"TECS - Geoquímica de Metais Pesados"},null,null,{"$f":"'1 - Preenchimento do plano'!B61","v":"TESGMP"},{"$f":"'1 - Preenchimento do plano'!D61","v":30},null,{"$f":"'1 - Preenchimento do plano'!S61","v":0},0]
[{"$f":"'1 - Preenchimento do plano'!F62","v":0},1,{"$f":"'1 - Preenchimento do plano'!C62","v":"TECS - Geoquímica de Metais Pesados e Metalóides"},null,null,{"$f":"'1 - Preenchimento do plano'!B62","v":"TESGMM"},{"$f":"'1 - Preenchimento do plano'!D62","v":30},null,{"$f":"'1 - Preenchimento do plano'!S62","v":0},0]
[{"$f":"'1 - Preenchimento do plano'!F63","v":0},1,{"$f":"'1 - Preenchimento do plano'!C63","v":"TECS -Hidrologia"},null,null,{"$f":"'1 - Preenchimento do plano'!B63","v":"TESHDR"},{"$f":"'1 - Preenchimento do plano'!D63","v":30},null,{"$f":"'1 - Preenchimento do plano'!S63","v":0},0]
[{"$f":"'1 - Preenchimento do plano'!F64","v":0},1,{"$f":"'1 - Preenchimento do plano'!C64","v":"TECS - Levantamento e Classificação do Solo"},null,null,{"$f":"'1 - Preenchimento do plano'!B64","v":"TESLCS"},{"$f":"'1 - Preenchimento do plano'!D64","v":30},null,{"$f":"'1 - Preenchimento do plano'!S64","v":0},0]
[{"$f":"'1 - Preenchimento do plano'!F65","v":0},1,{"$f":"'1 - Preenchimento do plano'!C65","v":"TECS - Métodos Analíticos de Biologia do Solo"},null,null,{"$f":"'1 - Preenchimento do plano'!B65","v":"TESMAB"},{"$f":"'1 - Preenchimento do plano'!D65","v":30},null,{"$f":"'1 - Preenchimento do plano'!S65","v":0},0]
[{"$f":"'1 - Preenchimento do plano'!F66","v":0},1,{"$f":"'1 - Preenchimento do plano'!C66","v":"TECS - Métodos Analíticos em Microbiologia do Solo"},null,null,{"$f":"'1 - Preenchimento do plano'!B66","v":"TESMAM"},{"$f":"'1 - Preenchimento do plano'!D66","v":30},null,{"$f":"'1 - Preenchimento do plano'!S66","v":0},0]
[{"$f":"'1 - Preenchimento do plano'!F67","v":0},1,{"$f":"'1 - Preenchimento do plano'!C67","v":"TECS - Mineralogia das Argilas"},null,null,{"$f":"'1 - Preenchimento do plano'!B67","v":"TESMIA"},{"$f":"'1 - Preenchimento do plano'!D67","v":30},null,{"$f":"'1 - Preenchimento do plano'!S67","v":0},0]
[{"$f":"'1 - Preenchimento do plano'!F68","v":0},1,{"$f":"'1 - Preenchimento do plano'!C68","v":"TECS - Mineralogia do Solo"},null,null,{"$f":"'1 - Preenchimento do plano'!B68","v":"TESMIS"},{"$f":"'1 - Preenchimento do plano'!D68","v":30},null,{"$f":"'1 - Preenchimento do plano'!S68","v":0},0]
[{"$f":"'1 - Preenchimento do plano'!F69","v":0},1,{"$f":"'1 - Preenchimento do plano'!C69","v":"TECS - Nivelamento em Química"},null,null,{"$f":"'1 - Preenchimento do plano'!B69","v":"TESNIQ"},{"$f":"'1 - Preenchimento do plano'!D69","v":30},null,{"$f":"'1 - Preenchimento do plano'!S69","v":0},0]
[{"$f":"'1 - Preenchimento do plano'!F70","v":0},1,{"$f":"'1 - Preenchimento do plano'!C70","v":"TECS - Nutrição Mineral de Frutíferas"},null,null,{"$f":"'1 - Preenchimento do plano'!B70","v":"TESNMF"},{"$f":"'1 - Preenchimento do plano'!D70","v":30},null,{"$f":"'1 - Preenchimento do plano'!S70","v":0},0]
[{"$f":"'1 - Preenchimento do plano'!F71","v":0},1,{"$f":"'1 - Preenchimento do plano'!C71","v":"TECS - Pesquisas em Erosão Hídrica"},null,null,{"$f":"'1 - Preenchimento do plano'!B71","v":"TESPEH"},{"$f":"'1 - Preenchimento do plano'!D71","v":30},null,{"$f":"'1 - Preenchimento do plano'!S71","v":0},0]
[{"$f":"'1 - Preenchimento do plano'!F72","v":0},1,{"$f":"'1 - Preenchimento do plano'!C72","v":"TECS - Técnicas de Pesquisa em Erosão"},null,null,{"$f":"'1 - Preenchimento do plano'!B72","v":"TESTPE"},{"$f":"'1 - Preenchimento do plano'!D72","v":30},null,{"$f":"'1 - Preenchimento do plano'!S72","v":0},0]
[{"$f":"'1 - Preenchimento do plano'!F73","v":0},1,{"$f":"'1 - Preenchimento do plano'!C73","v":"TECS - Técnicas de Redação e de Apresentação de Trabalhos Científicos"},null,null,{"$f":"'1 - Preenchimento do plano'!B73","v":"TESTRT"},{"$f":"'1 - Preenchimento do plano'!D73","v":30},null,{"$f":"'1 - Preenchimento do plano'!S73","v":0},0]
[{"$f":"'1 - Preenchimento do plano'!F74","v":0},1,{"$f":"'1 - Preenchimento do plano'!C74","v":"TECS - Uso e Conservação do Solo"},null,null,{"$f":"'1 - Preenchimento do plano'!B74","v":"TESUCS"},{"$f":"'1 - Preenchimento do plano'!D74","v":30},null,{"$f":"'1 - Preenchimento do plano'!S74","v":0},0]
[{"$f":"'1 - Preenchimento do plano'!F75","v":0},1,{"$f":"'1 - Preenchimento do plano'!C75","v":"TECS (Análise de Dados em Ecologia - Modelos Lineares General.)"},null,null,{"$f":"'1 - Preenchimento do plano'!B75","v":"TCSADE"},{"$f":"'1 - Preenchimento do plano'!D75","v":30},null,{"$f":"'1 - Preenchimento do plano'!S75","v":0},0]
[{"$f":"'1 - Preenchimento do plano'!F76","v":0},1,{"$f":"'1 - Preenchimento do plano'!C76","v":"TECS - Aplicada à Produção Florestal"},null,null,{"$f":"'1 - Preenchimento do plano'!B76","v":"TECSAP"},{"$f":"'1 - Preenchimento do plano'!D76","v":30},null,{"$f":"'1 - Preenchimento do plano'!S76","v":0},0]
[{"$f":"'1 - Preenchimento do plano'!F77","v":0},1,{"$f":"'1 - Preenchimento do plano'!C77","v":"TECS -  Avaliação de Risco Ecológico de Locais Contaminados"},null,null,{"$f":"'1 - Preenchimento do plano'!B77","v":"TESARC"},{"$f":"'1 - Preenchimento do plano'!D77","v":30},null,{"$f":"'1 - Preenchimento do plano'!S77","v":0},{"$f":"A78*B78","v":0}]
[{"$f":"'1 - Preenchimento do plano'!F78","v":0},1,{"$f":"'1 - Preenchimento do plano'!C78","v":"TECS - Ecotoxicologia e Análise de Risco Ecológico"},null,null,{"$f":"'1 - Preenchimento do plano'!B78","v":"TESEAR"},{"$f":"'1 - Preenchimento do plano'!D78","v":30},null,{"$f":"'1 - Preenchimento do plano'!S78","v":0},0]
[{"$f":"'1 - Preenchimento do plano'!F79","v":0},1,{"$f":"'1 - Preenchimento do plano'!C79","v":"TECS - A Utilização de Ensaios em Mesocosmos como Ferram..."},null,null,{"$f":"'1 - Preenchimento do plano'!B79","v":"TCSUEM"},{"$f":"'1 - Preenchimento do plano'!D79","v":30},null,{"$f":"'1 - Preenchimento do plano'!S79","v":0},0]
[{"$f":"'1 - Preenchimento do plano'!F80","v":0},1,{"$f":"'1 - Preenchimento do plano'!C80","v":"TECS - Métodos de Análises Físicas"},null,null,{"$f":"'1 - Preenchimento do plano'!B80","v":"TESMAF"},{"$f":"'1 - Preenchimento do plano'!D80","v":30},null,{"$f":"'1 - Preenchimento do plano'!S80","v":0},0]
[{"$f":"'1 - Preenchimento do plano'!F84","v":0},1,{"$f":"'1 - Preenchimento do plano'!C84","v":"Estatística - Nivelamento"},null,null,{"$f":"'1 - Preenchimento do plano'!B84","v":"ESTATI"},{"$f":"'1 - Preenchimento do plano'!D84","v":30},null,{"$f":"'1 - Preenchimento do plano'!S84","v":0},0]
[{"$f":"'1 - Preenchimento do plano'!F85","v":0},1,{"$f":"'1 - Preenchimento do plano'!C85","v":"Redação e Apresentação de Trabalhos Científicos"},null,null,{"$f":"'1 - Preenchimento do plano'!B85","v":"REDATC"},{"$f":"'1 - Preenchimento do plano'!D85","v":30},null,{"$f":"'1 - Preenchimento do plano'!S85","v":0},0]
[{"$f":"'1 - Preenchimento do plano'!F86","v":0},1,{"$f":"'1 - Preenchimento do plano'!C86","v":"Estatística Experimental e Análise Multivariada"},null,null,{"$f":"'1 - Preenchimento do plano'!B86","v":"ESTEAM"},{"$f":"'1 - Preenchimento do plano'!D86","v":60},null,{"$f":"'1 - Preenchimento do plano'!S86","v":0},0]
[{"$f":"'1 - Preenchimento do plano'!F87","v":0},1,{"$f":"'1 - Preenchimento do plano'!C87","v":"Fundamentos do Manejo de Plantas de Lavoura"},null,null,{"$f":"'1 - Preenchimento do plano'!B87","v":"FMAPLA"},{"$f":"'1 - Preenchimento do plano'!D87","v":60},null,{"$f":"'1 - Preenchimento do plano'!S87","v":0},0]
[{"$f":"'1 - Preenchimento do plano'!F88","v":0},1,{"$f":"'1 - Preenchimento do plano'!C88","v":"Metodologia do Ensino Superior"},null,null,{"$f":"'1 - Preenchimento do plano'!B88","v":"METENS"},{"$f":"'1 - Preenchimento do plano'!D88","v":60},null,{"$f":"'1 - Preenchimento do plano'!S88","v":0},0]
[{"$f":"'1 - Preenchimento do plano'!F89","v":0},1,{"$f":"'1 - Preenchimento do plano'!C89","v":"Modelos Biométricos Aplicados à Agronomia"},null,null,{"$f":"'1 - Preenchimento do plano'!B89","v":"MOBAPA"},{"$f":"'1 - Preenchimento do plano'!D89","v":60},null,{"$f":"'1 - Preenchimento do plano'!S89","v":0},0]
[{"$f":"'1 - Preenchimento do plano'!F93","v":0},1,{"$f":"'1 - Preenchimento do plano'!C93","v":"Tese de Doutorado"},null,null,{"$f":"'1 - Preenchimento do plano'!B93","v":"TESDMS"},{"$f":"'1 - Preenchimento do plano'!D93","v":0},null,{"$f":"'1 - Preenchimento do plano'!S93","v":0},0]
[{"$f":"'1 - Preenchimento do plano'!G19","v":0},2,{"$f":"C24","v":"Química do Solo"},null,null,{"$f":"F24","v":"QSO020"},60,null,{"$f":"I24","v":0},0]
[{"$f":"'1 - Preenchimento do plano'!G20","v":0},2,"Física do Solo",null,null,"FIS030",60,null,0,0]
[{"$f":"'1 - Preenchimento do plano'!G21","v":0},2,"Gênese, Morfologia e Classificação de Solos",null,null,"GMS010",60,null,0,0]
[{"$f":"'1 - Preenchimento do plano'!G23","v":0},2,"Metodologia Científica e da Pesquisa",null,null,"MCP050",30,null,0,0]
[{"$f":"'1 - Preenchimento do plano'!G24","v":0},2,"Seminarios - Presença",null,null,"SEMPMS",30,null,0,0]
[{"$f":"'1 - Preenchimento do plano'!G25","v":0},2,"Seminários - Apresentador (I)",null,null,"SEM200",30,null,0,0]
[{"$f":"'1 - Preenchimento do plano'!G26","v":0},2,"Seminários - Apresentador (II)",null,null,"SEM200",30,null,0,0]
[{"$f":"'1 - Preenchimento do plano'!G27","v":0},2,"Estágio em docência (I)",null,null,"ESTDOC",30,null,0,0]
[{"$f":"'1 - Preenchimento do plano'!G28","v":0},2,"Estágio em docência (II)",null,null,"ESTDOC",30,null,0,0]
[{"$f":"'1 - Preenchimento do plano'!G29","v":0},2,"Exame de proficiência em Língua Espanhola",null,null,"ESPAN",0,null,0,0]
[{"$f":"'1 - Preenchimento do plano'!G30","v":0},2,"Exame de proficiência em Língua Inglesa",null,null,"INGLES",0,null,0,0]
[{"$f":"'1 - Preenchimento do plano'!G35","v":0},2,"Água no Sistema Solo-Planta-Atmosfera",null,null,"ASISPA",60,null,0,{"$f":"A100*B100","v":0}]
[{"$f":"'1 - Preenchimento do plano'!G36","v":0},2,"Biodegradação de Resíduos Agrícolas e Industriais",null,null,"BRA140",60,null,0,0]
[{"$f":"'1 - Preenchimento do plano'!#REF!","v":{"$error":"#REF!"}},2,{"$error":"#REF!"},null,null,{"$error":"#REF!"},{"$error":"#REF!"},null,{"$error":"#REF!"},{"$error":"#REF!"}]
[{"$f":"'1 - Preenchimento do plano'!G37","v":0},2,"Ecotoxicologia de Poluentes Inorgânicos ",null,null,"ETOPOI",30,null,0,{"$f":"A103*B103","v":0}]
[{"$f":"'1 - Preenchimento do plano'!G38","v":0},2,"Fertilidade do Solo",null,null,"FER040",60,null,0,0]
[{"$f":"'1 - Preenchimento do plano'!G39","v":0},2,"Fisiologia Vegetal",null,null,"FIVEMS",60,null,0,0]
[{"$f":"'1 - Preenchimento do plano'!G40","v":0},2,"Hidrologia",null,null,"HIDROL",60,null,0,0]
[{"$f":"'1 - Preenchimento do plano'!G41","v":0},2,"Levantamento de Solos",null,null,"LSO120",60,null,0,0]
[{"$f":"'1 - Preenchimento do plano'!G42","v":0},2,"Manejo do Solo",null,null,"MSO010",60,null,0,0]
[{"$f":"'1 - Preenchimento do plano'!G43","v":0},2,"Métodos de Análise em Microbiologia e Bioquímica do Solo",null,null,"MAMBIS",60,null,0,0]
[{"$f":"'1 - Preenchimento do plano'!G44","v":0},2,"Matéria Orgânica do Solo",null,null,"MATORS",60,null,0,{"$f":"A110*B110","v":0}]
[{"$f":"'1 - Preenchimento do plano'!G45","v":0},2,"Mineralogia do Solo",null,null,"MINSOL",30,null,0,0]
[{"$f":"'1 - Preenchimento do plano'!G46","v":0},2,"Recuperação de Áreas Degradadas",null,null,"RECADE",60,null,0,0]
[{"$f":"'1 - Preenchimento do plano'!G47","v":0},2,"Relação Planta Microrganismos",null,null,"REPLAM",60,null,0,0]
[{"$f":"'1 - Preenchimento do plano'!G48","v":0},2,"Relação Solo-Planta",null,null,"RESOLP",30,null,0,0]
[{"$f":"'1 - Preenchimento do plano'!G49","v":0},2,"Uso e Conservação do Solo",null,null,"UCS070",60,null,0,0]
[{"$f":"'1 - Preenchimento do plano'!G50","v":0},2,"Técnicas de Análise Química de Solo e Tecido Vegetal",null,null,"TST170",60,null,0,0]
[{"$f":"'1 - Preenchimento do plano'!G51","v":0},2,"Tópicos Especiais em Ciência do Solo",null,null,"TES160",30,null,0,0]
[{"$f":"'1 - Preenchimento do plano'!G52","v":0},2,"TECS - Análise Estatística de Dados Utilizando o Programa SAS",null,null,"TESAED",30,null,0,{"$f":"A130*B118","v":0}]
[{"$f":"'1 - Preenchimento do plano'!G53","v":0},2,"TECS - Biologia do Solo",null,null,"TESBSO",30,null,0,0]
[{"$f":"'1 - Preenchimento do plano'!G54","v":0},2,"TECS - Dinâmica de fósforo no solo e ambiente",null,null,"TESDFS",30,null,0,{"$f":"A120*B120","v":0}]
[{"$f":"'1 - Preenchimento do plano'!G55","v":0},2,{"$f":"C56","v":"TECS - Estatística Aplicada ao Estudo de Caso"},null,null,{"$f":"F56","v":"TESEAC"},30,null,{"$f":"I56","v":0},0]
[{"$f":"'1 - Preenchimento do plano'!G56","v":0},2,{"$f":"C57","v":"TECS - Etnopedologia"},null,null,{"$f":"F57","v":"TESETN"},30,null,{"$f":"I57","v":0},0]
[{"$f":"'1 - Preenchimento do plano'!G57","v":0},2,"TECS - Extensão Universitária em C. A.agrárias - Projeto Rondon",null,null,{"$f":"F58","v":"TECSPR"},30,null,0,0]
[{"$f":"'1 - Preenchimento do plano'!G58","v":0},2,"TECS - Fauna Edáfica",null,null,{"$f":"F59","v":"TESFAE"},30,null,0,0]
[{"$f":"'1 - Preenchimento do plano'!G59","v":0},2,"TECS - Física do Solo",null,null,{"$f":"F60","v":"TESFIS"},30,null,0,0]
[{"$f":"'1 - Preenchimento do plano'!G60","v":0},2,"TECS - Física /Compactação",null,null,{"$f":"F61","v":"TESFIC"},30,null,0,0]
[{"$f":"'1 - Preenchimento do plano'!G61","v":0},2,"TECS - Geoquímica de Metais Pesados",null,null,{"$f":"F62","v":"TESGMP"},30,null,0,0]
[{"$f":"'1 - Preenchimento do plano'!G62","v":0},2,"TECS - Geoquímica de Metais Pesados e Metalóides",null,null,{"$f":"F63","v":"TESGMM"},30,null,0,0]
[{"$f":"'1 - Preenchimento do plano'!G63","v":0},2,"TECS -Hidrologia",null,null,{"$f":"F64","v":"TESHDR"},30,null,0,0]
[{"$f":"'1 - Preenchimento do plano'!G64","v":0},2,"TECS - Levantamento e Classificação do Solo",null,null,{"$f":"F65","v":"TESLCS"},30,null,0,0]
[{"$f":"'1 - Preenchimento do plano'!G65","v":0},2,"TECS - Métodos Analíticos de Biologia do Solo",null,null,{"$f":"F66","v":"TESMAB"},30,null,0,0]
[{"$f":"'1 - Preenchimento do plano'!G66","v":0},2,"TECS - Métodos Analíticos em Microbiologia do Solo",null,null,{"$f":"F67","v":"TESMAM"},30,null,0,0]
[{"$f":"'1 - Preenchimento do plano'!G67","v":0},2,"TECS - Mineralogia das Argilas",null,null,{"$f":"F68","v":"TESMIA"},30,null,0,0]
[{"$f":"'1 - Preenchimento do plano'!G68","v":0},2,"TECS - Mineralogia do Solo",null,null,{"$f":"F69","v":"TESMIS"},30,null,0,0]
[{"$f":"'1 - Preenchimento do plano'!G69","v":0},2,"TECS - Nivelamento em Química",null,null,{"$f":"F70","v":"TESNIQ"},30,null,0,0]
[{"$f":"'1 - Preenchimento do plano'!G70","v":0},2,"TECS - Nutrição Mineral de Frutíferas",null,null,{"$f":"F71","v":"TESNMF"},30,null,0,0]
[{"$f":"'1 - Preenchimento do plano'!G71","v":0},2,"TECS - Pesquisas em Erosão Hídrica",null,null,{"$f":"F72","v":"TESPEH"},30,null,0,0]
[{"$f":"'1 - Preenchimento do plano'!G72","v":0},2,"TECS - Técnicas de Pesquisa em Erosão",null,null,{"$f":"F73","v":"TESTPE"},30,null,0,0]
[{"$f":"'1 - Preenchimento do plano'!G73","v":0},2,"TECS - Técnicas de Redação e de Apresentação de Trabalhos Científicos",null,null,{"$f":"F74","v":"TESTRT"},30,null,0,0]
[{"$f":"'1 - Preenchimento do plano'!G74","v":0},2,"TECS - Uso e Conservação do Solo",null,null,{"$f":"F75","v":"TESUCS"},30,null,0,0]
[{"$f":"'1 - Preenchimento do plano'!G75","v":0},2,"TECS (Análise de Dados em Ecologia - Modelos Lineares General.)",null,null,{"$f":"F76","v":"TCSADE"},30,null,0,0]
[{"$f":"'1 - Preenchimento do plano'!G76","v":0},2,"TECS - Aplicada à Produção Florestal",null,null,{"$f":"F77","v":"TECSAP"},30,null,0,0]
[{"$f":"'1 - Preenchimento do plano'!G77","v":0},2,"TECS -  Avaliação de Risco Ecológico de Locais Contaminados",null,null,{"$f":"F78","v":"TESARC"},30,null,0,{"$f":"A143*B143","v":0}]
[{"$f":"'1 - Preenchimento do plano'!G78","v":0},2,"TECS - Ecotoxicologia e Análise de Risco Ecológico",null,null,{"$f":"F79","v":"TESEAR"},30,null,0,0]
[{"$f":"'1 - Preenchimento do plano'!G79","v":0},2,"TECS - A Utilização de Ensaios em Mesocosmos como Ferram...",null,null,{"$f":"F80","v":"TCSUEM"},30,null,0,0]
[{"$f":"'1 - Preenchimento do plano'!G80","v":0},2,{"$f":"C81","v":"TECS - Métodos de Análises Físicas"},null,null,{"$f":"F81","v":"TESMAF"},30,null,{"$f":"I81","v":0},0]
[{"$f":"'1 - Preenchimento do plano'!G84","v":0},2,{"$f":"C82","v":"Estatística - Nivelamento"},null,null,{"$f":"F82","v":"ESTATI"},30,null,{"$f":"I82","v":0},0]
[{"$f":"'1 - Preenchimento do plano'!G85","v":0},2,"Redação e Apresentação de Trabalhos Científicos",null,null,"REDATC",30,null,0,0]
[{"$f":"'1 - Preenchimento do plano'!G86","v":0},2,"Estatística Experimental e Análise Multivariada",null,null,"ESTEAM",60,null,0,0]
[{"$f":"'1 - Preenchimento do plano'!G87","v":0},2,"Fundamentos do Manejo de Plantas de Lavoura",null,null,"FMAPLA",60,null,0,0]
[{"$f":"'1 - Preenchimento do plano'!G88","v":0},2,"Metodologia do Ensino Superior",null,null,"METENS",60,null,0,0]
[{"$f":"'1 - Preenchimento do plano'!G89","v":0},2,"Modelos Biométricos Aplicados à Agronomia",null,null,"MOBAPA",60,null,0,0]
[{"$f":"'1 - Preenchimento do plano'!G93","v":0},2,"Tese de Doutorado",null,null,"TESDMS",0,null,0,{"$f":"A153*B153","v":0}]
[{"$f":"'1 - Preenchimento do plano'!H19","v":0},3,{"$f":"C24","v":"Química do Solo"},null,null,{"$f":"F24","v":"QSO020"},60,null,{"$f":"I24","v":0},0]
[{"$f":"'1 - Preenchimento do plano'!H20","v":0},3,"Física do Solo",null,null,"FIS030",60,null,0,0]
[{"$f":"'1 - Preenchimento do plano'!H21","v":0},3,"Gênese, Morfologia e Classificação de Solos",null,null,"GMS010",60,null,0,0]
[{"$f":"'1 - Preenchimento do plano'!H23","v":0},3,"Metodologia Científica e da Pesquisa",null,null,"MCP050",30,null,0,0]
[{"$f":"'1 - Preenchimento do plano'!H24","v":0},3,"Seminarios - Presença",null,null,"SEMPMS",30,null,0,0]
[{"$f":"'1 - Preenchimento do plano'!H25","v":0},3,"Seminários - Apresentador (I)",null,null,"SEM200",30,null,0,0]
[{"$f":"'1 - Preenchimento do plano'!H26","v":0},3,"Seminários - Apresentador (II)",null,null,"SEM200",30,null,0,0]
[{"$f":"'1 - Preenchimento do plano'!H27","v":0},3,"Estágio em docência (I)",null,null,"ESTDOC",30,null,0,0]
[{"$f":"'1 - Preenchimento do plano'!H28","v":0},3,"Estágio em docência (II)",null,null,"ESTDOC",30,null,0,0]
[{"$f":"'1 - Preenchimento do plano'!H29","v":0},3,"Exame de proficiência em Língua Espanhola",null,null,"ESPAN",0,null,0,0]
[{"$f":"'1 - Preenchimento do plano'!H30","v":0},3,"Exame de proficiência em Língua Inglesa",null,null,"INGLES",0,null,0,0]
[{"$f":"'1 - Preenchimento do plano'!H35","v":0},3,"Água no Sistema Solo-Planta-Atmosfera",null,null,"ASISPA",60,null,0,{"$f":"A165*B165","v":0}]
[{"$f":"'1 - Preenchimento do plano'!H36","v":0},3,"Biodegradação de Resíduos Agrícolas e Industriais",null,null,"BRA140",60,null,0,0]
[{"$f":"'1 - Preenchimento do plano'!#REF!","v":{"$error":"#REF!"}},3,{"$error":"#REF!"},null,null,{"$error":"#REF!"},{"$error":"#REF!"},null,{"$error":"#REF!"},{"$error":"#REF!"}]
[{"$f":"'1 - Preenchimento do plano'!H37","v":0},3,"Ecotoxicologia de Poluentes Inorgânicos ",null,null,"ETOPOI",30,null,0,{"$f":"A168*B168","v":0}]
[{"$f":"'1 - Preenchimento do plano'!H38","v":0},3,"Fertilidade do Solo",null,null,"FER040",60,null,0,0]
[{"$f":"'1 - Preenchimento do plano'!H39","v":0},3,"Fisiologia Vegetal",null,null,"FIVEMS",60,null,0,0]
[{"$f":"'1 - Preenchimento do plano'!H40","v":0},3,"Hidrologia",null,null,"HIDROL",60,null,0,0]
[{"$f":"'1 - Preenchimento do plano'!H41","v":0},3,"Levantamento de Solos",null,null,"LSO120",60,null,0,0]
[{"$f":"'1 - Preenchimento do plano'!H42","v":0},3,"Manejo do Solo",null,null,"MSO010",60,null,0,0]
[{"$f":"'1 - Preenchimento do plano'!H43","v":0},3,"Métodos de Análise em Microbiologia e Bioquímica do Solo",null,null,"MAMBIS",60,null,0,0]
[{"$f":"'1 - Preenchimento do plano'!H44","v":0},3,"Matéria Orgânica do Solo",null,null,"MATORS",60,null,0,{"$f":"A175*B175","v":0}]
[{"$f":"'1 - Preenchimento do plano'!H45","v":0},3,"Mineralogia do Solo",null,null,"MINSOL",30,null,0,0]
[{"$f":"'1 - Preenchimento do plano'!H46","v":0},3,"Recuperação de Áreas Degradadas",null,null,"RECADE",60,null,0,0]
[{"$f":"'1 - Preenchimento do plano'!H47","v":0},3,"Relação Planta Microrganismos",null,null,"REPLAM",60,null,0,0]
[{"$f":"'1 - Preenchimento do plano'!H48","v":0},3,"Relação Solo-Planta",null,null,"RESOLP",30,null,0,0]
[{"$f":"'1 - Preenchimento do plano'!H49","v":0},3,"Uso e Conservação do Solo",null,null,"UCS070",60,null,0,0]
[{"$f":"'1 - Preenchimento do plano'!H50","v":0},3,"Técnicas de Análise Química de Solo e Tecido Vegetal",null,null,"TST170",60,null,0,0]
[{"$f":"'1 - Preenchimento do plano'!H51","v":0},3,"Tópicos Especiais em Ciência do Solo",null,null,"TES160",30,null,0,0]
[{"$f":"'1 - Preenchimento do plano'!H52","v":0},3,"TECS - Análise Estatística de Dados Utilizando o Programa SAS",null,null,"TESAED",30,null,0,0]
[{"$f":"'1 - Preenchimento do plano'!H53","v":0},3,"TECS - Biologia do Solo",null,null,"TESBSO",30,null,0,0]
[{"$f":"'1 - Preenchimento do plano'!H54","v":0},3,"TECS - Dinâmica de fósforo no solo e ambiente",null,null,"TESDFS",30,null,0,{"$f":"A185*B185","v":0}]
[{"$f":"'1 - Preenchimento do plano'!H55","v":0},3,{"$f":"C56","v":"TECS - Estatística Aplicada ao Estudo de Caso"},null,null,{"$f":"F56","v":"TESEAC"},30,null,{"$f":"I56","v":0},0]
[{"$f":"'1 - Preenchimento do plano'!H56","v":0},3,{"$f":"C57","v":"TECS - Etnopedologia"},null,null,{"$f":"F57","v":"TESETN"},30,null,{"$f":"I57","v":0},0]
[{"$f":"'1 - Preenchimento do plano'!H57","v":0},3,"TECS - Extensão Universitária em C. A.agrárias - Projeto Rondon",null,null,{"$f":"F58","v":"TECSPR"},30,null,0,0]
[{"$f":"'1 - Preenchimento do plano'!H58","v":0},3,"TECS - Fauna Edáfica",null,null,{"$f":"F59","v":"TESFAE"},30,null,0,0]
[{"$f":"'1 - Preenchimento do plano'!H59","v":0},3,"TECS - Física do Solo",null,null,{"$f":"F60","v":"TESFIS"},30,null,0,0]
[{"$f":"'1 - Preenchimento do plano'!H60","v":0},3,"TECS - Física /Compactação",null,null,{"$f":"F61","v":"TESFIC"},30,null,0,0]
[{"$f":"'1 - Preenchimento do plano'!H61","v":0},3,"TECS - Geoquímica de Metais Pesados",null,null,{"$f":"F62","v":"TESGMP"},30,null,0,0]
[{"$f":"'1 - Preenchimento do plano'!H62","v":0},3,"TECS - Geoquímica de Metais Pesados e Metalóides",null,null,{"$f":"F63","v":"TESGMM"},30,null,0,0]
[{"$f":"'1 - Preenchimento do plano'!H63","v":0},3,"TECS -Hidrologia",null,null,{"$f":"F64","v":"TESHDR"},30,null,0,0]
[{"$f":"'1 - Preenchimento do plano'!H64","v":0},3,"TECS - Levantamento e Classificação do Solo",null,null,{"$f":"F65","v":"TESLCS"},30,null,0,0]
[{"$f":"'1 - Preenchimento do plano'!H65","v":0},3,"TECS - Métodos Analíticos de Biologia do Solo",null,null,{"$f":"F66","v":"TESMAB"},30,null,0,0]
[{"$f":"'1 - Preenchimento do plano'!H66","v":0},3,"TECS - Métodos Analíticos em Microbiologia do Solo",null,null,{"$f":"F67","v":"TESMAM"},30,null,0,0]
[{"$f":"'1 - Preenchimento do plano'!H67","v":0},3,"TECS - Mineralogia das Argilas",null,null,{"$f":"F68","v":"TESMIA"},30,null,0,0]
[{"$f":"'1 - Preenchimento do plano'!H68","v":0},3,"TECS - Mineralogia do Solo",null,null,{"$f":"F69","v":"TESMIS"},30,null,0,0]
[{"$f":"'1 - Preenchimento do plano'!H69","v":0},3,"TECS - Nivelamento em Química",null,null,{"$f":"F70","v":"TESNIQ"},30,null,0,0]
[{"$f":"'1 - Preenchimento do plano'!H70","v":0},3,"TECS - Nutrição Mineral de Frutíferas",null,null,{"$f":"F71","v":"TESNMF"},30,null,0,0]
[{"$f":"'1 - Preenchimento do plano'!H71","v":0},3,"TECS - Pesquisas em Erosão Hídrica",null,null,{"$f":"F72","v":"TESPEH"},30,null,0,0]
[{"$f":"'1 - Preenchimento do plano'!H72","v":0},3,"TECS - Técnicas de Pesquisa em Erosão",null,null,{"$f":"F73","v":"TESTPE"},30,null,0,0]
[{"$f":"'1 - Preenchimento do plano'!H73","v":0},3,"TECS - Técnicas de Redação e de Apresentação de Trabalhos Científicos",null,null,{"$f":"F74","v":"TESTRT"},30,null,0,0]
[{"$f":"'1 - Preenchimento do plano'!H74","v":0},3,"TECS - Uso e Conservação do Solo",null,null,{"$f":"F75","v":"TESUCS"},30,null,0,0]
[{"$f":"'1 - Preenchimento do plano'!H75","v":0},3,"TECS (Análise de Dados em Ecologia - Modelos Lineares General.)",null,null,{"$f":"F76","v":"TCSADE"},30,null,0,0]
[{"$f":"'1 - Preenchimento do plano'!H76","v":0},3,"TECS - Aplicada à Produção Florestal",null,null,{"$f":"F77","v":"TECSAP"},30,null,0,0]
[{"$f":"'1 - Preenchimento do plano'!H77","v":0},3,"TECS -  Avaliação de Risco Ecológico de Locais Contaminados",null,null,{"$f":"F78","v":"TESARC"},30,null,0,{"$f":"A208*B208","v":0}]
[{"$f":"'1 - Preenchimento do plano'!H78","v":0},3,"TECS - Ecotoxicologia e Análise de Risco Ecológico",null,null,{"$f":"F79","v":"TESEAR"},30,null,0,0]
[{"$f":"'1 - Preenchimento do plano'!H79","v":0},3,"TECS - A Utilização de Ensaios em Mesocosmos como Ferram...",null,null,{"$f":"F80","v":"TCSUEM"},30,null,0,0]
[{"$f":"'1 - Preenchimento do plano'!H80","v":0},3,{"$f":"C81","v":"TECS - Métodos de Análises Físicas"},null,null,{"$f":"F81","v":"TESMAF"},30,null,{"$f":"I81","v":0},0]
[{"$f":"'1 - Preenchimento do plano'!H84","v":0},3,{"$f":"C82","v":"Estatística - Nivelamento"},null,null,{"$f":"F82","v":"ESTATI"},30,null,{"$f":"I82","v":0},0]
[{"$f":"'1 - Preenchimento do plano'!H85","v":0},3,"Redação e Apresentação de Trabalhos Científicos",null,null,"REDATC",30,null,0,0]
[{"$f":"'1 - Preenchimento do plano'!H86","v":0},3,"Estatística Experimental e Análise Multivariada",null,null,"ESTEAM",60,null,0,0]
[{"$f":"'1 - Preenchimento do plano'!H87","v":0},3,"Fundamentos do Manejo de Plantas de Lavoura",null,null,"FMAPLA",60,null,0,0]
[{"$f":"'1 - Preenchimento do plano'!H88","v":0},3,"Metodologia do Ensino Superior",null,null,"METENS",60,null,0,0]
[{"$f":"'1 - Preenchimento do plano'!H89","v":0},3,"Modelos Biométricos Aplicados à Agronomia",null,null,"MOBAPA",60,null,0,0]
[{"$f":"'1 - Preenchimento do plano'!H93","v":0},3,"Tese de Doutorado",null,null,"TESDMS",0,null,0,0]
[{"$f":"'1 - Preenchimento do plano'!I19","v":0},4,{"$f":"C24","v":"Química do Solo"},null,null,{"$f":"F24","v":"QSO020"},60,null,{"$f":"I24","v":0},0]
[{"$f":"'1 - Preenchimento do plano'!I20","v":0},4,"Física do Solo",null,null,"FIS030",60,null,0,0]
[{"$f":"'1 - Preenchimento do plano'!I21","v":0},4,"Gênese, Morfologia e Classificação de Solos",null,null,"GMS010",60,null,0,0]
[{"$f":"'1 - Preenchimento do plano'!I23","v":0},4,"Metodologia Científica e da Pesquisa",null,null,"MCP050",30,null,0,0]
[{"$f":"'1 - Preenchimento do plano'!I24","v":0},4,"Seminarios - Presença",null,null,"SEMPMS",30,null,0,0]
[{"$f":"'1 - Preenchimento do plano'!I25","v":0},4,"Seminários - Apresentador (I)",null,null,"SEM200",30,null,0,0]
[{"$f":"'1 - Preenchimento do plano'!I26","v":0},4,"Seminários - Apresentador (II)",null,null,"SEM200",30,null,0,0]
[{"$f":"'1 - Preenchimento do plano'!I27","v":0},4,"Estágio em docência (I)",null,null,"ESTDOC",30,null,0,0]
[{"$f":"'1 - Preenchimento do plano'!I28","v":0},4,"Estágio em docência (II)",null,null,"ESTDOC",30,null,0,0]
[{"$f":"'1 - Preenchimento do plano'!I29","v":0},4,"Exame de proficiência em Língua Espanhola",null,null,"ESPAN",0,null,0,0]
[{"$f":"'1 - Preenchimento do plano'!I30","v":0},4,"Exame de proficiência em Língua Inglesa",null,null,"INGLES",0,null,0,0]
[{"$f":"'1 - Preenchimento do plano'!I35","v":0},4,"Água no Sistema Solo-Planta-Atmosfera",null,null,"ASISPA",60,null,0,{"$f":"A230*B230","v":0}]
[{"$f":"'1 - Preenchimento do plano'!I36","v":0},4,"Biodegradação de Resíduos Agrícolas e Industriais",null,null,"BRA140",60,null,0,0]
[{"$f":"'1 - Preenchimento do plano'!#REF!","v":{"$error":"#REF!"}},4,{"$error":"#REF!"},null,null,{"$error":"#REF!"},{"$error":"#REF!"},null,{"$error":"#REF!"},{"$error":"#REF!"}]
[{"$f":"'1 - Preenchimento do plano'!I37","v":0},4,"Ecotoxicologia de Poluentes Inorgânicos ",null,null,"ETOPOI",30,null,0,{"$f":"A233*B233","v":0}]
[{"$f":"'1 - Preenchimento do plano'!I38","v":0},4,"Fertilidade do Solo",null,null,"FER040",60,null,0,0]
[{"$f":"'1 - Preenchimento do plano'!I39","v":0},4,"Fisiologia Vegetal",null,null,"FIVEMS",60,null,0,0]
[{"$f":"'1 - Preenchimento do plano'!I40","v":0},4,"Hidrologia",null,null,"HIDROL",60,null,0,0]
[{"$f":"'1 - Preenchimento do plano'!I41","v":0},4,"Levantamento de Solos",null,null,"LSO120",60,null,0,0]
[{"$f":"'1 - Preenchimento do plano'!I42","v":0},4,"Manejo do Solo",null,null,"MSO010",60,null,0,0]
[{"$f":"'1 - Preenchimento do plano'!I43","v":0},4,"Métodos de Análise em Microbiologia e Bioquímica do Solo",null,null,"MAMBIS",60,null,0,0]
[{"$f":"'1 - Preenchimento do plano'!I44","v":0},4,"Matéria Orgânica do Solo",null,null,"MATORS",60,null,0,{"$f":"A240*B240","v":0}]
[{"$f":"'1 - Preenchimento do plano'!I45","v":0},4,"Mineralogia do Solo",null,null,"MINSOL",30,null,0,0]
[{"$f":"'1 - Preenchimento do plano'!I46","v":0},4,"Recuperação de Áreas Degradadas",null,null,"RECADE",60,null,0,0]
[{"$f":"'1 - Preenchimento do plano'!I47","v":0},4,"Relação Planta Microrganismos",null,null,"REPLAM",60,null,0,0]
[{"$f":"'1 - Preenchimento do plano'!I48","v":0},4,"Relação Solo-Planta",null,null,"RESOLP",30,null,0,0]
[{"$f":"'1 - Preenchimento do plano'!I49","v":0},4,"Uso e Conservação do Solo",null,null,"UCS070",60,null,0,0]
[{"$f":"'1 - Preenchimento do plano'!I50","v":0},4,"Técnicas de Análise Química de Solo e Tecido Vegetal",null,null,"TST170",60,null,0,0]
[{"$f":"'1 - Preenchimento do plano'!I51","v":0},4,"Tópicos Especiais em Ciência do Solo",null,null,"TES160",30,null,0,0]
[{"$f":"'1 - Preenchimento do plano'!I52","v":0},4,"TECS - Análise Estatística de Dados Utilizando o Programa SAS",null,null,"TESAED",30,null,0,0]
[{"$f":"'1 - Preenchimento do plano'!I53","v":0},4,"TECS - Biologia do Solo",null,null,"TESBSO",30,null,0,0]
[{"$f":"'1 - Preenchimento do plano'!I54","v":0},4,"TECS - Dinâmica de fósforo no solo e ambiente",null,null,"TESDFS",30,null,0,{"$f":"A250*B250","v":0}]
[{"$f":"'1 - Preenchimento do plano'!I55","v":0},4,{"$f":"C56","v":"TECS - Estatística Aplicada ao Estudo de Caso"},null,null,{"$f":"F56","v":"TESEAC"},30,null,{"$f":"I56","v":0},0]
[{"$f":"'1 - Preenchimento do plano'!I56","v":0},4,{"$f":"C57","v":"TECS - Etnopedologia"},null,null,{"$f":"F57","v":"TESETN"},30,null,{"$f":"I57","v":0},0]
[{"$f":"'1 - Preenchimento do plano'!I57","v":0},4,"TECS - Extensão Universitária em C. A.agrárias - Projeto Rondon",null,null,{"$f":"F58","v":"TECSPR"},30,null,0,0]
[{"$f":"'1 - Preenchimento do plano'!I58","v":0},4,"TECS - Fauna Edáfica",null,null,{"$f":"F59","v":"TESFAE"},30,null,0,0]
[{"$f":"'1 - Preenchimento do plano'!I59","v":0},4,"TECS - Física do Solo",null,null,{"$f":"F60","v":"TESFIS"},30,null,0,0]
[{"$f":"'1 - Preenchimento do plano'!I60","v":0},4,"TECS - Física /Compactação",null,null,{"$f":"F61","v":"TESFIC"},30,null,0,0]
[{"$f":"'1 - Preenchimento do plano'!I61","v":0},4,"TECS - Geoquímica de Metais Pesados",null,null,{"$f":"F62","v":"TESGMP"},30,null,0,0]
[{"$f":"'1 - Preenchimento do plano'!I62","v":0},4,"TECS - Geoquímica de Metais Pesados e Metalóides",null,null,{"$f":"F63","v":"TESGMM"},30,null,0,0]
[{"$f":"'1 - Preenchimento do plano'!I63","v":0},4,"TECS -Hidrologia",null,null,{"$f":"F64","v":"TESHDR"},30,null,0,0]
[{"$f":"'1 - Preenchimento do plano'!I64","v":0},4,"TECS - Levantamento e Classificação do Solo",null,null,{"$f":"F65","v":"TESLCS"},30,null,0,0]
[{"$f":"'1 - Preenchimento do plano'!I65","v":0},4,"TECS - Métodos Analíticos de Biologia do Solo",null,null,{"$f":"F66","v":"TESMAB"},30,null,0,0]
[{"$f":"'1 - Preenchimento do plano'!I66","v":0},4,"TECS - Métodos Analíticos em Microbiologia do Solo",null,null,{"$f":"F67","v":"TESMAM"},30,null,0,0]
[{"$f":"'1 - Preenchimento do plano'!I67","v":0},4,"TECS - Mineralogia das Argilas",null,null,{"$f":"F68","v":"TESMIA"},30,null,0,0]
[{"$f":"'1 - Preenchimento do plano'!I68","v":0},4,"TECS - Mineralogia do Solo",null,null,{"$f":"F69","v":"TESMIS"},30,null,0,0]
[{"$f":"'1 - Preenchimento do plano'!I69","v":0},4,"TECS - Nivelamento em Química",null,null,{"$f":"F70","v":"TESNIQ"},30,null,0,0]
[{"$f":"'1 - Preenchimento do plano'!I70","v":0},4,"TECS - Nutrição Mineral de Frutíferas",null,null,{"$f":"F71","v":"TESNMF"},30,null,0,0]
[{"$f":"'1 - Preenchimento do plano'!I71","v":0},4,"TECS - Pesquisas em Erosão Hídrica",null,null,{"$f":"F72","v":"TESPEH"},30,null,0,0]
[{"$f":"'1 - Preenchimento do plano'!I72","v":0},4,"TECS - Técnicas de Pesquisa em Erosão",null,null,{"$f":"F73","v":"TESTPE"},30,null,0,0]
[{"$f":"'1 - Preenchimento do plano'!I73","v":0},4,"TECS - Técnicas de Redação e de Apresentação de Trabalhos Científicos",null,null,{"$f":"F74","v":"TESTRT"},30,null,0,0]
[{"$f":"'1 - Preenchimento do plano'!I74","v":0},4,"TECS - Uso e Conservação do Solo",null,null,{"$f":"F75","v":"TESUCS"},30,null,0,0]
[{"$f":"'1 - Preenchimento do plano'!I75","v":0},4,"TECS (Análise de Dados em Ecologia - Modelos Lineares General.)",null,null,{"$f":"F76","v":"TCSADE"},30,null,0,0]
[{"$f":"'1 - Preenchimento do plano'!I76","v":0},4,"TECS - Aplicada à Produção Florestal",null,null,{"$f":"F77","v":"TECSAP"},30,null,0,0]
[{"$f":"'1 - Preenchimento do plano'!I77","v":0},4,"TECS -  Avaliação de Risco Ecológico de Locais Contaminados",null,null,{"$f":"F78","v":"TESARC"},30,null,0,{"$f":"A273*B273","v":0}]
[{"$f":"'1 - Preenchimento do plano'!I78","v":0},4,"TECS - Ecotoxicologia e Análise de Risco Ecológico",null,null,{"$f":"F79","v":"TESEAR"},30,null,0,0]
[{"$f":"'1 - Preenchimento do plano'!I79","v":0},4,"TECS - A Utilização de Ensaios em Mesocosmos como Ferram...",null,null,{"$f":"F80","v":"TCSUEM"},30,null,0,0]
[{"$f":"'1 - Preenchimento do plano'!I80","v":0},4,{"$f":"C81","v":"TECS - Métodos de Análises Físicas"},null,null,{"$f":"F81","v":"TESMAF"},30,null,{"$f":"I81","v":0},0]
[{"$f":"'1 - Preenchimento do plano'!I84","v":0},4,{"$f":"C82","v":"Estatística - Nivelamento"},null,null,{"$f":"F82","v":"ESTATI"},30,null,{"$f":"I82","v":0},0]
[{"$f":"'1 - Preenchimento do plano'!I85","v":0},4,"Redação e Apresentação de Trabalhos Científicos",null,null,"REDATC",30,null,0,0]
[{"$f":"'1 - Preenchimento do plano'!I86","v":0},4,"Estatística Experimental e Análise Multivariada",null,null,"ESTEAM",60,null,0,0]
[{"$f":"'1 - Preenchimento do plano'!I87","v":0},4,"Fundamentos do Manejo de Plantas de Lavoura",null,null,"FMAPLA",60,null,0,0]
[{"$f":"'1 - Preenchimento do plano'!I88","v":0},4,"Metodologia do Ensino Superior",null,null,"METENS",60,null,0,0]
[{"$f":"'1 - Preenchimento do plano'!I89","v":0},4,"Modelos Biométricos Aplicados à Agronomia",null,null,"MOBAPA",60,null,0,{"$f":"A282*B282","v":0}]
[{"$f":"'1 - Preenchimento do plano'!I93","v":0},4,"Tese de Doutorado",null,null,"TESDMS",0,null,0,0]
[{"$f":"'1 - Preenchimento do plano'!J19","v":0},5,{"$f":"C24","v":"Química do Solo"},null,null,{"$f":"F24","v":"QSO020"},60,null,{"$f":"I24","v":0},0]
[{"$f":"'1 - Preenchimento do plano'!J20","v":0},5,"Física do Solo",null,null,"FIS030",60,null,0,0]
[{"$f":"'1 - Preenchimento do plano'!J21","v":0},5,"Gênese, Morfologia e Classificação de Solos",null,null,"GMS010",60,null,0,0]
[{"$f":"'1 - Preenchimento do plano'!J23","v":0},5,"Metodologia Científica e da Pesquisa",null,null,"MCP050",30,null,0,0]
[{"$f":"'1 - Preenchimento do plano'!J24","v":0},5,"Seminarios - Presença",null,null,"SEMPMS",30,null,0,0]
[{"$f":"'1 - Preenchimento do plano'!J25","v":0},5,"Seminários - Apresentador (I)",null,null,"SEM200",30,null,0,0]
[{"$f":"'1 - Preenchimento do plano'!J26","v":0},5,"Seminários - Apresentador (II)",null,null,"SEM200",30,null,0,0]
[{"$f":"'1 - Preenchimento do plano'!J27","v":0},5,"Estágio em docência (I)",null,null,"ESTDOC",30,null,0,0]
[{"$f":"'1 - Preenchimento do plano'!J28","v":0},5,"Estágio em docência (II)",null,null,"ESTDOC",30,null,0,0]
[{"$f":"'1 - Preenchimento do plano'!J29","v":0},5,"Exame de proficiência em Língua Espanhola",null,null,"ESPAN",0,null,0,0]
[{"$f":"'1 - Preenchimento do plano'!J30","v":0},5,"Exame de proficiência em Língua Inglesa",null,null,"INGLES",0,null,0,0]
[{"$f":"'1 - Preenchimento do plano'!J35","v":0},5,"Água no Sistema Solo-Planta-Atmosfera",null,null,"ASISPA",60,null,0,{"$f":"A295*B295","v":0}]
[{"$f":"'1 - Preenchimento do plano'!J36","v":0},5,"Biodegradação de Resíduos Agrícolas e Industriais",null,null,"BRA140",60,null,0,0]
[{"$f":"'1 - Preenchimento do plano'!#REF!","v":{"$error":"#REF!"}},5,{"$error":"#REF!"},null,null,{"$error":"#REF!"},{"$error":"#REF!"},null,{"$error":"#REF!"},{"$error":"#REF!"}]
[{"$f":"'1 - Preenchimento do plano'!J37","v":0},5,"Ecotoxicologia de Poluentes Inorgânicos ",null,null,"ETOPOI",30,null,0,{"$f":"A298*B298","v":0}]
[{"$f":"'1 - Preenchimento do plano'!J38","v":0},5,"Fertilidade do Solo",null,null,"FER040",60,null,0,0]
[{"$f":"'1 - Preenchimento do plano'!J39","v":0},5,"Fisiologia Vegetal",null,null,"FIVEMS",60,null,0,0]
[{"$f":"'1 - Preenchimento do plano'!J40","v":0},5,"Hidrologia",null,null,"HIDROL",60,null,0,0]
[{"$f":"'1 - Preenchimento do plano'!J41","v":0},5,"Levantamento de Solos",null,null,"LSO120",60,null,0,0]
[{"$f":"'1 - Preenchimento do plano'!J42","v":0},5,"Manejo do Solo",null,null,"MSO010",60,null,0,0]
[{"$f":"'1 - Preenchimento do plano'!J43","v":0},5,"Métodos de Análise em Microbiologia e Bioquímica do Solo",null,null,"MAMBIS",60,null,0,0]
[{"$f":"'1 - Preenchimento do plano'!J44","v":0},5,"Matéria Orgânica do Solo",null,null,"MATORS",60,null,0,{"$f":"A305*B305","v":0}]
[{"$f":"'1 - Preenchimento do plano'!J45","v":0},5,"Mineralogia do Solo",null,null,"MINSOL",30,null,0,{"$f":"A306*B306","v":0}]
[{"$f":"'1 - Preenchimento do plano'!J46","v":0},5,"Recuperação de Áreas Degradadas",null,null,"RECADE",60,null,0,{"$f":"A307*B307","v":0}]
[{"$f":"'1 - Preenchimento do plano'!J47","v":0},5,{"$f":"C48","v":"Relação Planta Microrganismos"},null,null,{"$f":"F48","v":"REPLAM"},60,null,0,0]
[{"$f":"'1 - Preenchimento do plano'!J48","v":0},5,"Relação Solo-Planta",null,null,"RESOLP",30,null,0,0]
[{"$f":"'1 - Preenchimento do plano'!J49","v":0},5,"Uso e Conservação do Solo",null,null,"UCS070",60,null,0,0]
[{"$f":"'1 - Preenchimento do plano'!J50","v":0},5,"Técnicas de Análise Química de Solo e Tecido Vegetal",null,null,"TST170",60,null,0,0]
[{"$f":"'1 - Preenchimento do plano'!J51","v":0},5,"Tópicos Especiais em Ciência do Solo",null,null,"TES160",30,null,0,0]
[{"$f":"'1 - Preenchimento do plano'!J52","v":0},5,"TECS - Análise Estatística de Dados Utilizando o Programa SAS",null,null,"TESAED",30,null,0,0]
[{"$f":"'1 - Preenchimento do plano'!J53","v":0},5,"TECS - Biologia do Solo",null,null,"TESBSO",30,null,0,0]
[{"$f":"'1 - Preenchimento do plano'!J54","v":0},5,"TECS - Dinâmica de fósforo no solo e ambiente",null,null,"TESDFS",30,null,0,{"$f":"A315*B315","v":0}]
[{"$f":"'1 - Preenchimento do plano'!J55","v":0},5,"TECS - Estatística Aplicada ao Estudo de Caso",null,null,{"$f":"F56","v":"TESEAC"},30,null,{"$f":"I56","v":0},0]
[{"$f":"'1 - Preenchimento do plano'!J56","v":0},5,"TECS - Etnopedologia",null,null,{"$f":"F57","v":"TESETN"},30,null,{"$f":"I57","v":0},0]
[{"$f":"'1 - Preenchimento do plano'!J57","v":0},5,"TECS - Extensão Universitária em C. A.agrárias - Projeto Rondon",null,null,{"$f":"F58","v":"TECSPR"},30,null,0,0]
[{"$f":"'1 - Preenchimento do plano'!J58","v":0},5,"TECS - Fauna Edáfica",null,null,{"$f":"F59","v":"TESFAE"},30,null,0,0]
[{"$f":"'1 - Preenchimento do plano'!J59","v":0},5,"TECS - Física do Solo",null,null,{"$f":"F60","v":"TESFIS"},30,null,0,0]
[{"$f":"'1 - Preenchimento do plano'!J60","v":0},5,"TECS - Física /Compactação",null,null,{"$f":"F61","v":"TESFIC"},30,null,0,0]
[{"$f":"'1 - Preenchimento do plano'!J61","v":0},5,"TECS - Geoquímica de Metais Pesados",null,null,{"$f":"F62","v":"TESGMP"},30,null,0,0]
[{"$f":"'1 - Preenchimento do plano'!J62","v":0},5,"TECS - Geoquímica de Metais Pesados e Metalóides",null,null,{"$f":"F63","v":"TESGMM"},30,null,0,0]
[{"$f":"'1 - Preenchimento do plano'!J63","v":0},5,"TECS -Hidrologia",null,null,{"$f":"F64","v":"TESHDR"},30,null,0,0]
[{"$f":"'1 - Preenchimento do plano'!J64","v":0},5,"TECS - Levantamento e Classificação do Solo",null,null,{"$f":"F65","v":"TESLCS"},30,null,0,0]
[{"$f":"'1 - Preenchimento do plano'!J65","v":0},5,"TECS - Métodos Analíticos de Biologia do Solo",null,null,{"$f":"F66","v":"TESMAB"},30,null,0,0]
[{"$f":"'1 - Preenchimento do plano'!J66","v":0},5,"TECS - Métodos Analíticos em Microbiologia do Solo",null,null,{"$f":"F67","v":"TESMAM"},30,null,0,0]
[{"$f":"'1 - Preenchimento do plano'!J67","v":0},5,"TECS - Mineralogia das Argilas",null,null,{"$f":"F68","v":"TESMIA"},30,null,0,0]
[{"$f":"'1 - Preenchimento do plano'!J68","v":0},5,"TECS - Mineralogia do Solo",null,null,{"$f":"F69","v":"TESMIS"},30,null,0,0]
[{"$f":"'1 - Preenchimento do plano'!J69","v":0},5,"TECS - Nivelamento em Química",null,null,{"$f":"F70","v":"TESNIQ"},30,null,0,0]
[{"$f":"'1 - Preenchimento do plano'!J70","v":0},5,"TECS - Nutrição Mineral de Frutíferas",null,null,{"$f":"F71","v":"TESNMF"},30,null,0,0]
[{"$f":"'1 - Preenchimento do plano'!J71","v":0},5,"TECS - Pesquisas em Erosão Hídrica",null,null,{"$f":"F72","v":"TESPEH"},30,null,0,0]
[{"$f":"'1 - Preenchimento do plano'!J72","v":0},5,"TECS - Técnicas de Pesquisa em Erosão",null,null,{"$f":"F73","v":"TESTPE"},30,null,0,0]
[{"$f":"'1 - Preenchimento do plano'!J73","v":0},5,"TECS - Técnicas de Redação e de Apresentação de Trabalhos Científicos",null,null,{"$f":"F74","v":"TESTRT"},30,null,0,0]
[{"$f":"'1 - Preenchimento do plano'!J74","v":0},5,"TECS - Uso e Conservação do Solo",null,null,{"$f":"F75","v":"TESUCS"},30,null,0,0]
[{"$f":"'1 - Preenchimento do plano'!J75","v":0},5,"TECS (Análise de Dados em Ecologia - Modelos Lineares General.)",null,null,{"$f":"F76","v":"TCSADE"},30,null,0,0]
[{"$f":"'1 - Preenchimento do plano'!J76","v":0},5,"TECS - Aplicada à Produção Florestal",null,null,{"$f":"F77","v":"TECSAP"},30,null,0,0]
[{"$f":"'1 - Preenchimento do plano'!J77","v":0},5,"TECS -  Avaliação de Risco Ecológico de Locais Contaminados",null,null,{"$f":"F78","v":"TESARC"},30,null,0,{"$f":"A338*B338","v":0}]
[{"$f":"'1 - Preenchimento do plano'!J78","v":0},5,"TECS - Ecotoxicologia e Análise de Risco Ecológico",null,null,{"$f":"F79","v":"TESEAR"},30,null,0,0]
[{"$f":"'1 - Preenchimento do plano'!J79","v":0},5,"TECS - A Utilização de Ensaios em Mesocosmos como Ferram...",null,null,{"$f":"F80","v":"TCSUEM"},30,null,0,0]
[{"$f":"'1 - Preenchimento do plano'!J80","v":0},5,{"$f":"C81","v":"TECS - Métodos de Análises Físicas"},null,null,{"$f":"F81","v":"TESMAF"},30,null,{"$f":"I81","v":0},0]
[{"$f":"'1 - Preenchimento do plano'!J84","v":0},5,{"$f":"C82","v":"Estatística - Nivelamento"},null,null,{"$f":"F82","v":"ESTATI"},30,null,{"$f":"I82","v":0},0]
[{"$f":"'1 - Preenchimento do plano'!J85","v":0},5,"Redação e Apresentação de Trabalhos Científicos",null,null,"REDATC",30,null,0,0]
[{"$f":"'1 - Preenchimento do plano'!J86","v":0},5,"Estatística Experimental e Análise Multivariada",null,null,"ESTEAM",60,null,0,0]
[{"$f":"'1 - Preenchimento do plano'!J87","v":0},5,"Fundamentos do Manejo de Plantas de Lavoura",null,null,"FMAPLA",60,null,0,0]
[{"$f":"'1 - Preenchimento do plano'!J88","v":0},5,"Metodologia do Ensino Superior",null,null,"METENS",60,null,0,0]
[{"$f":"'1 - Preenchimento do plano'!J89","v":0},5,"Modelos Biométricos Aplicados à Agronomia",null,null,"MOBAPA",60,null,0,0]
[{"$f":"'1 - Preenchimento do plano'!J93","v":0},5,"Tese de Doutorado",null,null,"TESDMS",0,null,0,0]
[{"$f":"'1 - Preenchimento do plano'!K19","v":0},6,{"$f":"C24","v":"Química do Solo"},null,null,{"$f":"F24","v":"QSO020"},60,null,{"$f":"I24","v":0},0]
[{"$f":"'1 - Preenchimento do plano'!K20","v":0},6,"Física do Solo",null,null,"FIS030",60,null,0,0]
[{"$f":"'1 - Preenchimento do plano'!K21","v":0},6,"Gênese, Morfologia e Classificação de Solos",null,null,"GMS010",60,null,0,0]
[{"$f":"'1 - Preenchimento do plano'!K23","v":0},6,"Metodologia Científica e da Pesquisa",null,null,"MCP050",30,null,0,0]
[{"$f":"'1 - Preenchimento do plano'!K24","v":0},6,"Seminarios - Presença",null,null,"SEMPMS",30,null,0,0]
[{"$f":"'1 - Preenchimento do plano'!K25","v":0},6,"Seminários - Apresentador (I)",null,null,"SEM200",30,null,0,0]
[{"$f":"'1 - Preenchimento do plano'!K26","v":0},6,"Seminários - Apresentador (II)",null,null,"SEM200",30,null,0,0]
[{"$f":"'1 - Preenchimento do plano'!K27","v":0},6,"Estágio em docência (I)",null,null,"ESTDOC",30,null,0,0]
[{"$f":"'1 - Preenchimento do plano'!K28","v":0},6,"Estágio em docência (II)",null,null,"ESTDOC",30,null,0,0]
[{"$f":"'1 - Preenchimento do plano'!K29","v":0},6,"Exame de proficiência em Língua Espanhola",null,null,"ESPAN",0,null,0,0]
[{"$f":"'1 - Preenchimento do plano'!K30","v":0},6,"Exame de proficiência em Língua Inglesa",null,null,"INGLES",0,null,0,0]
[{"$f":"'1 - Preenchimento do plano'!K35","v":0},6,"Água no Sistema Solo-Planta-Atmosfera",null,null,"ASISPA",60,null,0,{"$f":"A360*B360","v":0}]
[{"$f":"'1 - Preenchimento do plano'!K36","v":0},6,"Biodegradação de Resíduos Agrícolas e Industriais",null,null,"BRA140",60,null,0,0]
[{"$f":"'1 - Preenchimento do plano'!#REF!","v":{"$error":"#REF!"}},6,{"$error":"#REF!"},null,null,{"$error":"#REF!"},{"$error":"#REF!"},null,{"$error":"#REF!"},{"$error":"#REF!"}]
[{"$f":"'1 - Preenchimento do plano'!K37","v":0},6,"Ecotoxicologia de Poluentes Inorgânicos ",null,null,"ETOPOI",30,null,0,{"$f":"A363*B363","v":0}]
[{"$f":"'1 - Preenchimento do plano'!K38","v":0},6,"Fertilidade do Solo",null,null,"FER040",60,null,0,0]
[{"$f":"'1 - Preenchimento do plano'!K39","v":0},6,"Fisiologia Vegetal",null,null,"FIVEMS",60,null,0,0]
[{"$f":"'1 - Preenchimento do plano'!K40","v":0},6,"Hidrologia",null,null,"HIDROL",60,null,0,0]
[{"$f":"'1 - Preenchimento do plano'!K41","v":0},6,"Levantamento de Solos",null,null,"LSO120",60,null,0,0]
[{"$f":"'1 - Preenchimento do plano'!K42","v":0},6,"Manejo do Solo",null,null,"MSO010",60,null,0,0]
[{"$f":"'1 - Preenchimento do plano'!K43","v":0},6,"Métodos de Análise em Microbiologia e Bioquímica do Solo",null,null,"MAMBIS",60,null,0,0]
[{"$f":"'1 - Preenchimento do plano'!K44","v":0},6,"Matéria Orgânica do Solo",null,null,"MATORS",60,null,0,{"$f":"A370*B370","v":0}]
[{"$f":"'1 - Preenchimento do plano'!K45","v":0},6,"Mineralogia do Solo",null,null,"MINSOL",30,null,0,0]
[{"$f":"'1 - Preenchimento do plano'!K46","v":0},6,"Recuperação de Áreas Degradadas",null,null,"RECADE",60,null,0,0]
[{"$f":"'1 - Preenchimento do plano'!K47","v":0},6,{"$f":"C48","v":"Relação Planta Microrganismos"},null,null,{"$f":"F48","v":"REPLAM"},60,null,0,0]
[{"$f":"'1 - Preenchimento do plano'!K48","v":0},6,"Relação Solo-Planta",null,null,"RESOLP",30,null,0,0]
[{"$f":"'1 - Preenchimento do plano'!K49","v":0},6,"Uso e Conservação do Solo",null,null,"UCS070",60,null,0,0]
[{"$f":"'1 - Preenchimento do plano'!K50","v":0},6,"Técnicas de Análise Química de Solo e Tecido Vegetal",null,null,"TST170",60,null,0,0]
[{"$f":"'1 - Preenchimento do plano'!K51","v":0},6,"Tópicos Especiais em Ciência do Solo",null,null,"TES160",30,null,0,0]
[{"$f":"'1 - Preenchimento do plano'!K52","v":0},6,"TECS - Análise Estatística de Dados Utilizando o Programa SAS",null,null,"TESAED",30,null,0,0]
[{"$f":"'1 - Preenchimento do plano'!K53","v":0},6,"TECS - Biologia do Solo",null,null,"TESBSO",30,null,0,0]
[{"$f":"'1 - Preenchimento do plano'!K54","v":0},6,"TECS - Dinâmica de fósforo no solo e ambiente",null,null,"TESDFS",30,null,0,{"$f":"A380*B380","v":0}]
[{"$f":"'1 - Preenchimento do plano'!K55","v":0},6,"TECS - Estatística Aplicada ao Estudo de Caso",null,null,{"$f":"F56","v":"TESEAC"},30,null,{"$f":"I56","v":0},0]
[{"$f":"'1 - Preenchimento do plano'!K56","v":0},6,"TECS - Etnopedologia",null,null,{"$f":"F57","v":"TESETN"},30,null,{"$f":"I57","v":0},0]
[{"$f":"'1 - Preenchimento do plano'!K57","v":0},6,"TECS - Extensão Universitária em C. A.agrárias - Projeto Rondon",null,null,{"$f":"F58","v":"TECSPR"},30,null,0,0]
[{"$f":"'1 - Preenchimento do plano'!K58","v":0},6,"TECS - Fauna Edáfica",null,null,{"$f":"F59","v":"TESFAE"},30,null,0,0]
[{"$f":"'1 - Preenchimento do plano'!K59","v":0},6,"TECS - Física do Solo",null,null,{"$f":"F60","v":"TESFIS"},30,null,0,0]
[{"$f":"'1 - Preenchimento do plano'!K60","v":0},6,"TECS - Física /Compactação",null,null,{"$f":"F61","v":"TESFIC"},30,null,0,0]
[{"$f":"'1 - Preenchimento do plano'!K61","v":0},6,"TECS - Geoquímica de Metais Pesados",null,null,{"$f":"F62","v":"TESGMP"},30,null,0,0]
[{"$f":"'1 - Preenchimento do plano'!K62","v":0},6,"TECS - Geoquímica de Metais Pesados e Metalóides",null,null,{"$f":"F63","v":"TESGMM"},30,null,0,0]
[{"$f":"'1 - Preenchimento do plano'!K63","v":0},6,"TECS -Hidrologia",null,null,{"$f":"F64","v":"TESHDR"},30,null,0,0]
[{"$f":"'1 - Preenchimento do plano'!K64","v":0},6,"TECS - Levantamento e Classificação do Solo",null,null,{"$f":"F65","v":"TESLCS"},30,null,0,0]
[{"$f":"'1 - Preenchimento do plano'!K65","v":0},6,"TECS - Métodos Analíticos de Biologia do Solo",null,null,{"$f":"F66","v":"TESMAB"},30,null,0,0]
[{"$f":"'1 - Preenchimento do plano'!K66","v":0},6,"TECS - Métodos Analíticos em Microbiologia do Solo",null,null,{"$f":"F67","v":"TESMAM"},30,null,0,0]
[{"$f":"'1 - Preenchimento do plano'!K67","v":0},6,"TECS - Mineralogia das Argilas",null,null,{"$f":"F68","v":"TESMIA"},30,null,0,0]
[{"$f":"'1 - Preenchimento do plano'!K68","v":0},6,"TECS - Mineralogia do Solo",null,null,{"$f":"F69","v":"TESMIS"},30,null,0,0]
[{"$f":"'1 - Preenchimento do plano'!K69","v":0},6,"TECS - Nivelamento em Química",null,null,{"$f":"F70","v":"TESNIQ"},30,null,0,0]
[{"$f":"'1 - Preenchimento do plano'!K70","v":0},6,"TECS - Nutrição Mineral de Frutíferas",null,null,{"$f":"F71","v":"TESNMF"},30,null,0,0]
[{"$f":"'1 - Preenchimento do plano'!K71","v":0},6,"TECS - Pesquisas em Erosão Hídrica",null,null,{"$f":"F72","v":"TESPEH"},30,null,0,0]
[{"$f":"'1 - Preenchimento do plano'!K72","v":0},6,"TECS - Técnicas de Pesquisa em Erosão",null,null,{"$f":"F73","v":"TESTPE"},30,null,0,0]
[{"$f":"'1 - Preenchimento do plano'!K73","v":0},6,"TECS - Técnicas de Redação e de Apresentação de Trabalhos Científicos",null,null,{"$f":"F74","v":"TESTRT"},30,null,0,0]
[{"$f":"'1 - Preenchimento do plano'!K74","v":0},6,"TECS - Uso e Conservação do Solo",null,null,{"$f":"F75","v":"TESUCS"},30,null,0,0]
[{"$f":"'1 - Preenchimento do plano'!K75","v":0},6,"TECS (Análise de Dados em Ecologia - Modelos Lineares General.)",null,null,{"$f":"F76","v":"TCSADE"},30,null,0,0]
[{"$f":"'1 - Preenchimento do plano'!K76","v":0},6,"TECS - Aplicada à Produção Florestal",null,null,{"$f":"F77","v":"TECSAP"},30,null,0,0]
[{"$f":"'1 - Preenchimento do plano'!K77","v":0},6,"TECS -  Avaliação de Risco Ecológico de Locais Contaminados",null,null,{"$f":"F78","v":"TESARC"},30,null,0,{"$f":"A403*B403","v":0}]
[{"$f":"'1 - Preenchimento do plano'!K78","v":0},6,"TECS - Ecotoxicologia e Análise de Risco Ecológico",null,null,{"$f":"F79","v":"TESEAR"},30,null,0,0]
[{"$f":"'1 - Preenchimento do plano'!K79","v":0},6,"TECS - A Utilização de Ensaios em Mesocosmos como Ferram...",null,null,{"$f":"F80","v":"TCSUEM"},30,null,0,0]
[{"$f":"'1 - Preenchimento do plano'!K80","v":0},6,{"$f":"C81","v":"TECS - Métodos de Análises Físicas"},null,null,{"$f":"F81","v":"TESMAF"},30,null,{"$f":"I81","v":0},0]
[{"$f":"'1 - Preenchimento do plano'!K84","v":0},6,{"$f":"C82","v":"Estatística - Nivelamento"},null,null,{"$f":"F82","v":"ESTATI"},30,null,{"$f":"I82","v":0},0]
[{"$f":"'1 - Preenchimento do plano'!K85","v":0},6,"Redação e Apresentação de Trabalhos Científicos",null,null,"REDATC",30,null,0,0]
[{"$f":"'1 - Preenchimento do plano'!K86","v":0},6,"Estatística Experimental e Análise Multivariada",null,null,"ESTEAM",60,null,0,0]
[{"$f":"'1 - Preenchimento do plano'!K87","v":0},6,"Fundamentos do Manejo de Plantas de Lavoura",null,null,"FMAPLA",60,null,0,0]
[{"$f":"'1 - Preenchimento do plano'!K88","v":0},6,"Metodologia do Ensino Superior",null,null,"METENS",60,null,0,{"$f":"A411*B411","v":0}]
[{"$f":"'1 - Preenchimento do plano'!K89","v":0},6,"Modelos Biométricos Aplicados à Agronomia",null,null,"MOBAPA",60,null,0,0]
[{"$f":"'1 - Preenchimento do plano'!K93","v":0},6,"Tese de Doutorado",null,null,"TESDMS",0,null,0,0]
[{"$f":"'1 - Preenchimento do plano'!L19","v":0},7,{"$f":"C24","v":"Química do Solo"},null,null,{"$f":"F24","v":"QSO020"},60,null,{"$f":"I24","v":0},0]
[{"$f":"'1 - Preenchimento do plano'!L20","v":0},7,"Física do Solo",null,null,"FIS030",60,null,0,0]
[{"$f":"'1 - Preenchimento do plano'!L21","v":0},7,"Gênese, Morfologia e Classificação de Solos",null,null,"GMS010",60,null,0,0]
[{"$f":"'1 - Preenchimento do plano'!L23","v":0},7,"Metodologia Científica e da Pesquisa",null,null,"MCP050",30,null,0,0]
[{"$f":"'1 - Preenchimento do plano'!L24","v":0},7,"Seminarios - Presença",null,null,"SEMPMS",30,null,0,0]
[{"$f":"'1 - Preenchimento do plano'!L25","v":0},7,"Seminários - Apresentador (I)",null,null,"SEM200",30,null,0,0]
[{"$f":"'1 - Preenchimento do plano'!L26","v":0},7,"Seminários - Apresentador (II)",null,null,"SEM200",30,null,0,0]
[{"$f":"'1 - Preenchimento do plano'!L27","v":0},7,"Estágio em docência (I)",null,null,"ESTDOC",30,null,0,0]
[{"$f":"'1 - Preenchimento do plano'!L28","v":0},7,"Estágio em docência (II)",null,null,"ESTDOC",30,null,0,0]
[{"$f":"'1 - Preenchimento do plano'!L29","v":0},7,"Exame de proficiência em Língua Espanhola",null,null,"ESPAN",0,null,0,0]
[{"$f":"'1 - Preenchimento do plano'!L30","v":0},7,"Exame de proficiência em Língua Inglesa",null,null,"INGLES",0,null,0,0]
[{"$f":"'1 - Preenchimento do plano'!L35","v":0},7,"Água no Sistema Solo-Planta-Atmosfera",null,null,"ASISPA",60,null,0,{"$f":"A425*B425","v":0}]
[{"$f":"'1 - Preenchimento do plano'!L36","v":0},7,"Biodegradação de Resíduos Agrícolas e Industriais",null,null,"BRA140",60,null,0,0]
[{"$f":"'1 - Preenchimento do plano'!#REF!","v":{"$error":"#REF!"}},7,{"$error":"#REF!"},null,null,{"$error":"#REF!"},{"$error":"#REF!"},null,{"$error":"#REF!"},{"$error":"#REF!"}]
[{"$f":"'1 - Preenchimento do plano'!L37","v":0},7,"Ecotoxicologia de Poluentes Inorgânicos ",null,null,"ETOPOI",30,null,0,{"$f":"A428*B428","v":0}]
[{"$f":"'1 - Preenchimento do plano'!L38","v":0},7,"Fertilidade do Solo",null,null,"FER040",60,null,0,0]
[{"$f":"'1 - Preenchimento do plano'!L39","v":0},7,"Fisiologia Vegetal",null,null,"FIVEMS",60,null,0,0]
[{"$f":"'1 - Preenchimento do plano'!L40","v":0},7,"Hidrologia",null,null,"HIDROL",60,null,0,0]
[{"$f":"'1 - Preenchimento do plano'!L41","v":0},7,"Levantamento de Solos",null,null,"LSO120",60,null,0,0]
[{"$f":"'1 - Preenchimento do plano'!L42","v":0},7,"Manejo do Solo",null,null,"MSO010",60,null,0,0]
[{"$f":"'1 - Preenchimento do plano'!L43","v":0},7,"Métodos de Análise em Microbiologia e Bioquímica do Solo",null,null,"MAMBIS",60,null,0,0]
[{"$f":"'1 - Preenchimento do plano'!L44","v":0},7,"Matéria Orgânica do Solo",null,null,"MATORS",60,null,0,{"$f":"A435*B435","v":0}]
[{"$f":"'1 - Preenchimento do plano'!L45","v":0},7,"Mineralogia do Solo",null,null,"MINSOL",30,null,0,0]
[{"$f":"'1 - Preenchimento do plano'!L46","v":0},7,"Recuperação de Áreas Degradadas",null,null,"RECADE",60,null,0,0]
[{"$f":"'1 - Preenchimento do plano'!L47","v":0},7,{"$f":"C48","v":"Relação Planta Microrganismos"},null,null,{"$f":"F48","v":"REPLAM"},60,null,0,0]
[{"$f":"'1 - Preenchimento do plano'!L48","v":0},7,"Relação Solo-Planta",null,null,"RESOLP",30,null,0,0]
[{"$f":"'1 - Preenchimento do plano'!L49","v":0},7,"Uso e Conservação do Solo",null,null,"UCS070",60,null,0,0]
[{"$f":"'1 - Preenchimento do plano'!L50","v":0},7,"Técnicas de Análise Química de Solo e Tecido Vegetal",null,null,"TST170",60,null,0,0]
[{"$f":"'1 - Preenchimento do plano'!L51","v":0},7,"Tópicos Especiais em Ciência do Solo",null,null,"TES160",30,null,0,0]
[{"$f":"'1 - Preenchimento do plano'!L52","v":0},7,"TECS - Análise Estatística de Dados Utilizando o Programa SAS",null,null,"TESAED",30,null,0,0]
[{"$f":"'1 - Preenchimento do plano'!L53","v":0},7,"TECS - Biologia do Solo",null,null,"TESBSO",30,null,0,0]
[{"$f":"'1 - Preenchimento do plano'!L54","v":0},7,"TECS - Dinâmica de fósforo no solo e ambiente",null,null,"TESDFS",30,null,0,{"$f":"A445*B445","v":0}]
[{"$f":"'1 - Preenchimento do plano'!L55","v":0},7,"TECS - Estatística Aplicada ao Estudo de Caso",null,null,{"$f":"F56","v":"TESEAC"},30,null,{"$f":"I56","v":0},0]
[{"$f":"'1 - Preenchimento do plano'!L56","v":0},7,"TECS - Etnopedologia",null,null,{"$f":"F57","v":"TESETN"},30,null,{"$f":"I57","v":0},0]
[{"$f":"'1 - Preenchimento do plano'!L57","v":0},7,"TECS - Extensão Universitária em C. A.agrárias - Projeto Rondon",null,null,{"$f":"F58","v":"TECSPR"},30,null,0,0]
[{"$f":"'1 - Preenchimento do plano'!L58","v":0},7,"TECS - Fauna Edáfica",null,null,{"$f":"F59","v":"TESFAE"},30,null,0,0]
[{"$f":"'1 - Preenchimento do plano'!L59","v":0},7,"TECS - Física do Solo",null,null,{"$f":"F60","v":"TESFIS"},30,null,0,0]
[{"$f":"'1 - Preenchimento do plano'!L60","v":0},7,"TECS - Física /Compactação",null,null,{"$f":"F61","v":"TESFIC"},30,null,0,0]
[{"$f":"'1 - Preenchimento do plano'!L61","v":0},7,"TECS - Geoquímica de Metais Pesados",null,null,{"$f":"F62","v":"TESGMP"},30,null,0,0]
[{"$f":"'1 - Preenchimento do plano'!L62","v":0},7,"TECS - Geoquímica de Metais Pesados e Metalóides",null,null,{"$f":"F63","v":"TESGMM"},30,null,0,0]
[{"$f":"'1 - Preenchimento do plano'!L63","v":0},7,"TECS -Hidrologia",null,null,{"$f":"F64","v":"TESHDR"},30,null,0,0]
[{"$f":"'1 - Preenchimento do plano'!L64","v":0},7,"TECS - Levantamento e Classificação do Solo",null,null,{"$f":"F65","v":"TESLCS"},30,null,0,0]
[{"$f":"'1 - Preenchimento do plano'!L65","v":0},7,"TECS - Métodos Analíticos de Biologia do Solo",null,null,{"$f":"F66","v":"TESMAB"},30,null,0,0]
[{"$f":"'1 - Preenchimento do plano'!L66","v":0},7,"TECS - Métodos Analíticos em Microbiologia do Solo",null,null,{"$f":"F67","v":"TESMAM"},30,null,0,0]
[{"$f":"'1 - Preenchimento do plano'!L67","v":0},7,"TECS - Mineralogia das Argilas",null,null,{"$f":"F68","v":"TESMIA"},30,null,0,0]
[{"$f":"'1 - Preenchimento do plano'!L68","v":0},7,"TECS - Mineralogia do Solo",null,null,{"$f":"F69","v":"TESMIS"},30,null,0,0]
[{"$f":"'1 - Preenchimento do plano'!L69","v":0},7,"TECS - Nivelamento em Química",null,null,{"$f":"F70","v":"TESNIQ"},30,null,0,0]
[{"$f":"'1 - Preenchimento do plano'!L70","v":0},7,"TECS - Nutrição Mineral de Frutíferas",null,null,{"$f":"F71","v":"TESNMF"},30,null,0,0]
[{"$f":"'1 - Preenchimento do plano'!L71","v":0},7,"TECS - Pesquisas em Erosão Hídrica",null,null,{"$f":"F72","v":"TESPEH"},30,null,0,0]
[{"$f":"'1 - Preenchimento do plano'!L72","v":0},7,"TECS - Técnicas de Pesquisa em Erosão",null,null,{"$f":"F73","v":"TESTPE"},30,null,0,0]
[{"$f":"'1 - Preenchimento do plano'!L73","v":0},7,"TECS - Técnicas de Redação e de Apresentação de Trabalhos Científicos",null,null,{"$f":"F74","v":"TESTRT"},30,null,0,0]
[{"$f":"'1 - Preenchimento do plano'!L74","v":0},7,"TECS - Uso e Conservação do Solo",null,null,{"$f":"F75","v":"TESUCS"},30,null,0,0]
[{"$f":"'1 - Preenchimento do plano'!L75","v":0},7,"TECS (Análise de Dados em Ecologia - Modelos Lineares General.)",null,null,{"$f":"F76","v":"TCSADE"},30,null,0,0]
[{"$f":"'1 - Preenchimento do plano'!L76","v":0},7,"TECS - Aplicada à Produção Florestal",null,null,{"$f":"F77","v":"TECSAP"},30,null,0,0]
[{"$f":"'1 - Preenchimento do plano'!L77","v":0},7,"TECS -  Avaliação de Risco Ecológico de Locais Contaminados",null,null,{"$f":"F78","v":"TESARC"},30,null,0,{"$f":"A468*B468","v":0}]
[{"$f":"'1 - Preenchimento do plano'!L78","v":0},7,"TECS - Ecotoxicologia e Análise de Risco Ecológico",null,null,{"$f":"F79","v":"TESEAR"},30,null,0,0]
[{"$f":"'1 - Preenchimento do plano'!L79","v":0},7,"TECS - A Utilização de Ensaios em Mesocosmos como Ferram...",null,null,{"$f":"F80","v":"TCSUEM"},30,null,0,0]
[{"$f":"'1 - Preenchimento do plano'!L80","v":0},7,{"$f":"C81","v":"TECS - Métodos de Análises Físicas"},null,null,{"$f":"F81","v":"TESMAF"},30,null,{"$f":"I81","v":0},0]
[{"$f":"'1 - Preenchimento do plano'!L84","v":0},7,{"$f":"C82","v":"Estatística - Nivelamento"},null,null,{"$f":"F82","v":"ESTATI"},30,null,{"$f":"I82","v":0},0]
[{"$f":"'1 - Preenchimento do plano'!L85","v":0},7,"Redação e Apresentação de Trabalhos Científicos",null,null,"REDATC",30,null,0,0]
[{"$f":"'1 - Preenchimento do plano'!L86","v":0},7,"Estatística Experimental e Análise Multivariada",null,null,"ESTEAM",60,null,0,0]
[{"$f":"'1 - Preenchimento do plano'!L87","v":0},7,"Fundamentos do Manejo de Plantas de Lavoura",null,null,"FMAPLA",60,null,0,0]
[{"$f":"'1 - Preenchimento do plano'!L88","v":0},7,"Metodologia do Ensino Superior",null,null,"METENS",60,null,0,0]
[{"$f":"'1 - Preenchimento do plano'!L89","v":0},7,"Modelos Biométricos Aplicados à Agronomia",null,null,"MOBAPA",60,null,0,0]
[{"$f":"'1 - Preenchimento do plano'!L93","v":0},7,"Tese de Doutorado",null,null,"TESDMS",0,null,0,0]
[{"$f":"'1 - Preenchimento do plano'!M19","v":0},8,{"$f":"C24","v":"Química do Solo"},null,null,{"$f":"F24","v":"QSO020"},60,null,{"$f":"I24","v":0},0]
[{"$f":"'1 - Preenchimento do plano'!M20","v":0},8,"Física do Solo",null,null,"FIS030",60,null,0,0]
[{"$f":"'1 - Preenchimento do plano'!M21","v":0},8,"Gênese, Morfologia e Classificação de Solos",null,null,"GMS010",60,null,0,0]
[{"$f":"'1 - Preenchimento do plano'!M23","v":0},8,"Metodologia Científica e da Pesquisa",null,null,"MCP050",30,null,0,0]
[{"$f":"'1 - Preenchimento do plano'!M24","v":0},8,"Seminarios - Presença",null,null,"SEMPMS",30,null,0,0]
[{"$f":"'1 - Preenchimento do plano'!M25","v":0},8,"Seminários - Apresentador (I)",null,null,"SEM200",30,null,0,0]
[{"$f":"'1 - Preenchimento do plano'!M26","v":0},8,"Seminários - Apresentador (II)",null,null,"SEM200",30,null,0,0]
[{"$f":"'1 - Preenchimento do plano'!M27","v":0},8,"Estágio em docência (I)",null,null,"ESTDOC",30,null,0,0]
[{"$f":"'1 - Preenchimento do plano'!M28","v":0},8,"Estágio em docência (II)",null,null,"ESTDOC",30,null,0,0]
[{"$f":"'1 - Preenchimento do plano'!M29","v":0},8,"Exame de proficiência em Língua Espanhola",null,null,"ESPAN",0,null,0,0]
[{"$f":"'1 - Preenchimento do plano'!M30","v":0},8,"Exame de proficiência em Língua Inglesa",null,null,"INGLES",0,null,0,0]
[{"$f":"'1 - Preenchimento do plano'!M35","v":0},8,"Água no Sistema Solo-Planta-Atmosfera",null,null,"ASISPA",60,null,0,{"$f":"A490*B490","v":0}]
[{"$f":"'1 - Preenchimento do plano'!M36","v":0},8,"Biodegradação de Resíduos Agrícolas e Industriais",null,null,"BRA140",60,null,0,0]
[{"$f":"'1 - Preenchimento do plano'!#REF!","v":{"$error":"#REF!"}},8,{"$error":"#REF!"},null,null,{"$error":"#REF!"},{"$error":"#REF!"},null,{"$error":"#REF!"},{"$error":"#REF!"}]
[{"$f":"'1 - Preenchimento do plano'!M37","v":0},8,"Ecotoxicologia de Poluentes Inorgânicos ",null,null,"ETOPOI",30,null,0,{"$f":"A493*B493","v":0}]
[{"$f":"'1 - Preenchimento do plano'!M37","v":0},8,{"$f":"C38","v":"Ecotoxicologia de Poluentes Inorgânicos "},null,null,{"$f":"F38","v":"ETOPOI"},30,null,{"$f":"I38","v":0},{"$f":"A494*B494","v":0}]
[{"$f":"'1 - Preenchimento do plano'!M38","v":0},8,"Fertilidade do Solo",null,null,"FER040",60,null,0,0]
[{"$f":"'1 - Preenchimento do plano'!M39","v":0},8,"Fisiologia Vegetal",null,null,"FIVEMS",60,null,0,0]
[{"$f":"'1 - Preenchimento do plano'!M40","v":0},8,"Hidrologia",null,null,"HIDROL",60,null,0,0]
[{"$f":"'1 - Preenchimento do plano'!M41","v":0},8,"Levantamento de Solos",null,null,"LSO120",60,null,0,0]
[{"$f":"'1 - Preenchimento do plano'!M42","v":0},8,"Manejo do Solo",null,null,"MSO010",60,null,0,0]
[{"$f":"'1 - Preenchimento do plano'!M43","v":0},8,"Métodos de Análise em Microbiologia e Bioquímica do Solo",null,null,"MAMBIS",60,null,0,0]
[{"$f":"'1 - Preenchimento do plano'!M44","v":0},8,"Matéria Orgânica do Solo",null,null,"MATORS",60,null,0,{"$f":"A501*B501","v":0}]
[{"$f":"'1 - Preenchimento do plano'!M45","v":0},8,"Mineralogia do Solo",null,null,"MINSOL",30,null,0,0]
[{"$f":"'1 - Preenchimento do plano'!M46","v":0},8,"Recuperação de Áreas Degradadas",null,null,"RECADE",60,null,0,0]
[{"$f":"'1 - Preenchimento do plano'!M47","v":0},8,{"$f":"C48","v":"Relação Planta Microrganismos"},null,null,{"$f":"F48","v":"REPLAM"},60,null,0,0]
[{"$f":"'1 - Preenchimento do plano'!M48","v":0},8,"Relação Solo-Planta",null,null,"RESOLP",30,null,0,0]
[{"$f":"'1 - Preenchimento do plano'!M49","v":0},8,"Uso e Conservação do Solo",null,null,"UCS070",60,null,0,0]
[{"$f":"'1 - Preenchimento do plano'!M50","v":0},8,"Técnicas de Análise Química de Solo e Tecido Vegetal",null,null,"TST170",60,null,0,0]
[{"$f":"'1 - Preenchimento do plano'!M51","v":0},8,"Tópicos Especiais em Ciência do Solo",null,null,"TES160",30,null,0,0]
[{"$f":"'1 - Preenchimento do plano'!M52","v":0},8,"TECS - Análise Estatística de Dados Utilizando o Programa SAS",null,null,"TESAED",30,null,0,0]
[{"$f":"'1 - Preenchimento do plano'!M53","v":0},8,"TECS - Biologia do Solo",null,null,"TESBSO",30,null,0,0]
[{"$f":"'1 - Preenchimento do plano'!M54","v":0},8,"TECS - Dinâmica de fósforo no solo e ambiente",null,null,"TESDFS",30,null,0,{"$f":"A511*B511","v":0}]
[{"$f":"'1 - Preenchimento do plano'!M55","v":0},8,"TECS - Estatística Aplicada ao Estudo de Caso",null,null,{"$f":"F56","v":"TESEAC"},30,null,{"$f":"I56","v":0},0]
[{"$f":"'1 - Preenchimento do plano'!M56","v":0},8,"TECS - Etnopedologia",null,null,{"$f":"F57","v":"TESETN"},30,null,{"$f":"I57","v":0},0]
[{"$f":"'1 - Preenchimento do plano'!M57","v":0},8,"TECS - Extensão Universitária em C. A.agrárias - Projeto Rondon",null,null,{"$f":"F58","v":"TECSPR"},30,null,0,0]
[{"$f":"'1 - Preenchimento do plano'!M58","v":0},8,"TECS - Fauna Edáfica",null,null,{"$f":"F59","v":"TESFAE"},30,null,0,0]
[{"$f":"'1 - Preenchimento do plano'!M59","v":0},8,"TECS - Física do Solo",null,null,{"$f":"F60","v":"TESFIS"},30,null,0,0]
[{"$f":"'1 - Preenchimento do plano'!M60","v":0},8,"TECS - Física /Compactação",null,null,{"$f":"F61","v":"TESFIC"},30,null,0,0]
[{"$f":"'1 - Preenchimento do plano'!M61","v":0},8,"TECS - Geoquímica de Metais Pesados",null,null,{"$f":"F62","v":"TESGMP"},30,null,0,0]
[{"$f":"'1 - Preenchimento do plano'!M62","v":0},8,"TECS - Geoquímica de Metais Pesados e Metalóides",null,null,{"$f":"F63","v":"TESGMM"},30,null,0,0]
[{"$f":"'1 - Preenchimento do plano'!M63","v":0},8,"TECS -Hidrologia",null,null,{"$f":"F64","v":"TESHDR"},30,null,0,0]
[{"$f":"'1 - Preenchimento do plano'!M64","v":0},8,"TECS - Levantamento e Classificação do Solo",null,null,{"$f":"F65","v":"TESLCS"},30,null,0,0]
[{"$f":"'1 - Preenchimento do plano'!M65","v":0},8,"TECS - Métodos Analíticos de Biologia do Solo",null,null,{"$f":"F66","v":"TESMAB"},30,null,0,0]
[{"$f":"'1 - Preenchimento do plano'!M66","v":0},8,"TECS - Métodos Analíticos em Microbiologia do Solo",null,null,{"$f":"F67","v":"TESMAM"},30,null,0,0]
[{"$f":"'1 - Preenchimento do plano'!M67","v":0},8,"TECS - Mineralogia das Argilas",null,null,{"$f":"F68","v":"TESMIA"},30,null,0,0]
[{"$f":"'1 - Preenchimento do plano'!M68","v":0},8,"TECS - Mineralogia do Solo",null,null,{"$f":"F69","v":"TESMIS"},30,null,0,0]
[{"$f":"'1 - Preenchimento do plano'!M69","v":0},8,"TECS - Nivelamento em Química",null,null,{"$f":"F70","v":"TESNIQ"},30,null,0,0]
[{"$f":"'1 - Preenchimento do plano'!M70","v":0},8,"TECS - Nutrição Mineral de Frutíferas",null,null,{"$f":"F71","v":"TESNMF"},30,null,0,0]
[{"$f":"'1 - Preenchimento do plano'!M71","v":0},8,"TECS - Pesquisas em Erosão Hídrica",null,null,{"$f":"F72","v":"TESPEH"},30,null,0,0]
[{"$f":"'1 - Preenchimento do plano'!M72","v":0},8,"TECS - Técnicas de Pesquisa em Erosão",null,null,{"$f":"F73","v":"TESTPE"},30,null,0,0]
[{"$f":"'1 - Preenchimento do plano'!M73","v":0},8,"TECS - Técnicas de Redação e de Apresentação de Trabalhos Científicos",null,null,{"$f":"F74","v":"TESTRT"},30,null,0,0]
[{"$f":"'1 - Preenchimento do plano'!M74","v":0},8,"TECS - Uso e Conservação do Solo",null,null,{"$f":"F75","v":"TESUCS"},30,null,0,0]
[{"$f":"'1 - Preenchimento do plano'!M75","v":0},8,"TECS (Análise de Dados em Ecologia - Modelos Lineares General.)",null,null,{"$f":"F76","v":"TCSADE"},30,null,0,0]
[{"$f":"'1 - Preenchimento do plano'!M76","v":0},8,"TECS - Aplicada à Produção Florestal",null,null,{"$f":"F77","v":"TECSAP"},30,null,0,0]
[{"$f":"'1 - Preenchimento do plano'!M77","v":0},8,"TECS -  Avaliação de Risco Ecológico de Locais Contaminados",null,null,{"$f":"F78","v":"TESARC"},30,null,0,{"$f":"A534*B534","v":0}]
[{"$f":"'1 - Preenchimento do plano'!M78","v":0},8,"TECS - Ecotoxicologia e Análise de Risco Ecológico",null,null,{"$f":"F79","v":"TESEAR"},30,null,0,0]
[{"$f":"'1 - Preenchimento do plano'!M79","v":0},8,"TECS - A Utilização de Ensaios em Mesocosmos como Ferram...",null,null,{"$f":"F80","v":"TCSUEM"},30,null,0,0]
[{"$f":"'1 - Preenchimento do plano'!M80","v":0},8,{"$f":"C81","v":"TECS - Métodos de Análises Físicas"},null,null,{"$f":"F81","v":"TESMAF"},30,null,{"$f":"I81","v":0},0]
[{"$f":"'1 - Preenchimento do plano'!M84","v":0},8,{"$f":"C82","v":"Estatística - Nivelamento"},null,null,{"$f":"F82","v":"ESTATI"},30,null,{"$f":"I82","v":0},0]
[{"$f":"'1 - Preenchimento do plano'!M85","v":0},8,"Redação e Apresentação de Trabalhos Científicos",null,null,"REDATC",30,null,0,0]
[{"$f":"'1 - Preenchimento do plano'!M86","v":0},8,"Estatística Experimental e Análise Multivariada",null,null,"ESTEAM",60,null,0,{"$f":"A540*B540","v":0}]
[{"$f":"'1 - Preenchimento do plano'!M87","v":0},8,"Fundamentos do Manejo de Plantas de Lavoura",null,null,"FMAPLA",60,null,0,0]
[{"$f":"'1 - Preenchimento do plano'!M88","v":0},8,"Metodologia do Ensino Superior",null,null,"METENS",60,null,0,0]
[{"$f":"'1 - Preenchimento do plano'!M89","v":0},8,"Modelos Biométricos Aplicados à Agronomia",null,null,"MOBAPA",60,null,0,0]
[{"$f":"'1 - Preenchimento do plano'!M93","v":0},8,"Tese de Doutorado",null,null,"TESDMS",0,null,0,0]
[1,"DISCIPLINAS COM SOLICITAÇÃO DE DISPENSA, APROVEITAMENTO OU VALIDAÇÃO",null,null,null,null,null,null,null,1]
[{"$f":"'1 - Preenchimento do plano'!N19","v":0},"x",{"$f":"'1 - Preenchimento do plano'!C19","v":"Química do Solo"},null,null,{"$f":"'1 - Preenchimento do plano'!B19","v":"QSO020"},{"$f":"'1 - Preenchimento do plano'!D19","v":60},null,{"$f":"'1 - Preenchimento do plano'!S19","v":0},{"$f":"'1 - Preenchimento do plano'!N19","v":0}]
[{"$f":"'1 - Preenchimento do plano'!N20","v":0},"x",{"$f":"'1 - Preenchimento do plano'!C20","v":"Física do Solo"},null,null,{"$f":"'1 - Preenchimento do plano'!B20","v":"FIS030"},{"$f":"'1 - Preenchimento do plano'!D20","v":60},null,{"$f":"'1 - Preenchimento do plano'!S20","v":0},{"$f":"'1 - Preenchimento do plano'!N20","v":0}]
[{"$f":"'1 - Preenchimento do plano'!N21","v":0},"x",{"$f":"'1 - Preenchimento do plano'!C21","v":"Gênese, Morfologia e Classificação de Solos"},null,null,{"$f":"'1 - Preenchimento do plano'!B21","v":"GMS010"},{"$f":"'1 - Preenchimento do plano'!D21","v":60},null,{"$f":"'1 - Preenchimento do plano'!S21","v":0},{"$f":"'1 - Preenchimento do plano'!N21","v":0}]
[{"$f":"'1 - Preenchimento do plano'!N23","v":0},"x",{"$f":"'1 - Preenchimento do plano'!C23","v":"Metodologia Científica e da Pesquisa"},null,null,{"$f":"'1 - Preenchimento do plano'!B23","v":"MCP050"},{"$f":"'1 - Preenchimento do plano'!D23","v":30},null,{"$f":"'1 - Preenchimento do plano'!S23","v":0},{"$f":"'1 - Preenchimento do plano'!N23","v":0}]
[0,"x",{"$f":"'1 - Preenchimento do plano'!C27","v":"Estágio em docência (I)"},null,null,{"$f":"'1 - Preenchimento do plano'!B27","v":"ESTDOC"},{"$f":"'1 - Preenchimento do plano'!D27","v":30},null,{"$f":"'1 - Preenchimento do plano'!S27","v":0},{"$f":"'1 - Preenchimento do plano'!O27","v":0}]
[0,"x",{"$f":"'1 - Preenchimento do plano'!C28","v":"Estágio em docência (II)"},null,null,{"$f":"'1 - Preenchimento do plano'!B28","v":"ESTDOC"},{"$f":"'1 - Preenchimento do plano'!D28","v":30},null,{"$f":"'1 - Preenchimento do plano'!S28","v":0},{"$f":"'1 - Preenchimento do plano'!O28","v":0}]
[{"$f":"'1 - Preenchimento do plano'!O28","v":0},"x",{"$f":"'1 - Preenchimento do plano'!C29","v":"Exame de proficiência em Língua Espanhola"},null,null,{"$f":"'1 - Preenchimento do plano'!B29","v":"ESPAN"},{"$f":"'1 - Preenchimento do plano'!D29","v":0},null,{"$f":"'1 - Preenchimento do plano'!S29","v":0},{"$f":"'1 - Preenchimento do plano'!O29","v":0}]
[{"$f":"'1 - Preenchimento do plano'!O29","v":0},"x",{"$f":"'1 - Preenchimento do plano'!C30","v":"Exame de proficiência em Língua Inglesa"},null,null,{"$f":"'1 - Preenchimento do plano'!B30","v":"INGLES"},{"$f":"'1 - Preenchimento do plano'!D30","v":0},null,{"$f":"'1 - Preenchimento do plano'!S30","v":0},{"$f":"'1 - Preenchimento do plano'!O30","v":0}]
[{"$f":"'1 - Preenchimento do plano'!N35","v":0},"x",{"$f":"'1 - Preenchimento do plano'!C35","v":"Água no Sistema Solo-Planta-Atmosfera"},null,null,{"$f":"'1 - Preenchimento do plano'!B35","v":"ASISPA"},{"$f":"'1 - Preenchimento do plano'!D35","v":60},null,{"$f":"'1 - Preenchimento do plano'!S35","v":0},{"$f":"'1 - Preenchimento do plano'!N35","v":0}]
[{"$f":"'1 - Preenchimento do plano'!N36","v":0},"x",{"$f":"'1 - Preenchimento do plano'!C36","v":"Biodegradação de Resíduos Agrícolas e Industriais"},null,null,{"$f":"'1 - Preenchimento do plano'!B36","v":"BRA140"},{"$f":"'1 - Preenchimento do plano'!D36","v":60},null,{"$f":"'1 - Preenchimento do plano'!S36","v":0},{"$f":"'1 - Preenchimento do plano'!N36","v":0}]
[{"$f":"'1 - Preenchimento do plano'!#REF!","v":{"$error":"#REF!"}},"x",{"$f":"'1 - Preenchimento do plano'!#REF!","v":{"$error":"#REF!"}},null,null,{"$f":"'1 - Preenchimento do plano'!#REF!","v":{"$error":"#REF!"}},{"$f":"'1 - Preenchimento do plano'!#REF!","v":{"$error":"#REF!"}},null,{"$f":"'1 - Preenchimento do plano'!#REF!","v":{"$error":"#REF!"}},{"$f":"'1 - Preenchimento do plano'!#REF!","v":{"$error":"#REF!"}}]
[{"$f":"'1 - Preenchimento do plano'!N37","v":0},"x",{"$f":"'1 - Preenchimento do plano'!C37","v":"Ecotoxicologia de Poluentes Inorgânicos "},null,null,{"$f":"'1 - Preenchimento do plano'!B37","v":"ETOPOI"},{"$f":"'1 - Preenchimento do plano'!D37","v":30},null,{"$f":"'1 - Preenchimento do plano'!S37","v":0},{"$f":"'1 - Preenchimento do plano'!N37","v":0}]
[{"$f":"'1 - Preenchimento do plano'!N38","v":0},"x",{"$f":"'1 - Preenchimento do plano'!C38","v":"Fertilidade do Solo"},null,null,{"$f":"'1 - Preenchimento do plano'!B38","v":"FER040"},{"$f":"'1 - Preenchimento do plano'!D38","v":60},null,{"$f":"'1 - Preenchimento do plano'!S38","v":0},{"$f":"'1 - Preenchimento do plano'!N38","v":0}]
[{"$f":"'1 - Preenchimento do plano'!N39","v":0},"x",{"$f":"'1 - Preenchimento do plano'!C39","v":"Fisiologia Vegetal"},null,null,{"$f":"'1 - Preenchimento do plano'!B39","v":"FIVEMS"},{"$f":"'1 - Preenchimento do plano'!D39","v":60},null,{"$f":"'1 - Preenchimento do plano'!S39","v":0},{"$f":"'1 - Preenchimento do plano'!N39","v":0}]
[{"$f":"'1 - Preenchimento do plano'!N40","v":0},"x",{"$f":"'1 - Preenchimento do plano'!C40","v":"Hidrologia"},null,null,{"$f":"'1 - Preenchimento do plano'!B40","v":"HIDROL"},{"$f":"'1 - Preenchimento do plano'!D40","v":60},null,{"$f":"'1 - Preenchimento do plano'!S40","v":0},{"$f":"'1 - Preenchimento do plano'!N40","v":0}]
[{"$f":"'1 - Preenchimento do plano'!N41","v":0},"x",{"$f":"'1 - Preenchimento do plano'!C41","v":"Levantamento de Solos"},null,null,{"$f":"'1 - Preenchimento do plano'!B41","v":"LSO120"},{"$f":"'1 - Preenchimento do plano'!D41","v":60},null,{"$f":"'1 - Preenchimento do plano'!S41","v":0},{"$f":"'1 - Preenchimento do plano'!N41","v":0}]
[{"$f":"'1 - Preenchimento do plano'!N42","v":0},"x",{"$f":"'1 - Preenchimento do plano'!C42","v":"Manejo do Solo"},null,null,{"$f":"'1 - Preenchimento do plano'!B42","v":"MSO010"},{"$f":"'1 - Preenchimento do plano'!D42","v":60},null,{"$f":"'1 - Preenchimento do plano'!S42","v":0},{"$f":"'1 - Preenchimento do plano'!N42","v":0}]
[{"$f":"'1 - Preenchimento do plano'!N43","v":0},"x",{"$f":"'1 - Preenchimento do plano'!C43","v":"Métodos de Análise em Microbiologia e Bioquímica do Solo"},null,null,{"$f":"'1 - Preenchimento do plano'!B43","v":"MAMBIS"},{"$f":"'1 - Preenchimento do plano'!D43","v":60},null,{"$f":"'1 - Preenchimento do plano'!S43","v":0},{"$f":"'1 - Preenchimento do plano'!N43","v":0}]
[{"$f":"'1 - Preenchimento do plano'!N44","v":0},"x",{"$f":"'1 - Preenchimento do plano'!C44","v":"Matéria Orgânica do Solo"},null,null,{"$f":"'1 - Preenchimento do plano'!B44","v":"MATORS"},{"$f":"'1 - Preenchimento do plano'!D44","v":60},null,{"$f":"'1 - Preenchimento do plano'!S44","v":0},{"$f":"'1 - Preenchimento do plano'!N44","v":0}]
[{"$f":"'1 - Preenchimento do plano'!N45","v":0},"x",{"$f":"'1 - Preenchimento do plano'!C45","v":"Mineralogia do Solo"},null,null,{"$f":"'1 - Preenchimento do plano'!B45","v":"MINSOL"},{"$f":"'1 - Preenchimento do plano'!D45","v":30},null,{"$f":"'1 - Preenchimento do plano'!S45","v":0},{"$f":"'1 - Preenchimento do plano'!N45","v":0}]
[{"$f":"'1 - Preenchimento do plano'!N46","v":0},"x","Recuperação de Áreas Degradadas",null,null,"RECADE",60,null,{"$f":"'1 - Preenchimento do plano'!S46","v":0},{"$f":"'1 - Preenchimento do plano'!N46","v":0}]
[{"$f":"'1 - Preenchimento do plano'!N47","v":0},"x",{"$f":"'1 - Preenchimento do plano'!C47","v":"Relação Planta Microrganismos"},null,null,{"$f":"'1 - Preenchimento do plano'!B47","v":"REPLAM"},{"$f":"'1 - Preenchimento do plano'!D47","v":60},null,{"$f":"'1 - Preenchimento do plano'!S47","v":0},{"$f":"'1 - Preenchimento do plano'!N47","v":0}]
[{"$f":"'1 - Preenchimento do plano'!N48","v":0},"x",{"$f":"'1 - Preenchimento do plano'!C48","v":"Relação Solo-Planta"},null,null,{"$f":"'1 - Preenchimento do plano'!B48","v":"RESOLP"},{"$f":"'1 - Preenchimento do plano'!D48","v":30},null,{"$f":"'1 - Preenchimento do plano'!S48","v":0},{"$f":"'1 - Preenchimento do plano'!N48","v":0}]
[{"$f":"'1 - Preenchimento do plano'!N49","v":0},"x",{"$f":"'1 - Preenchimento do plano'!C49","v":"Uso e Conservação do Solo"},null,null,{"$f":"'1 - Preenchimento do plano'!B49","v":"UCS070"},{"$f":"'1 - Preenchimento do plano'!D49","v":60},null,{"$f":"'1 - Preenchimento do plano'!S49","v":0},{"$f":"'1 - Preenchimento do plano'!N49","v":0}]
[{"$f":"'1 - Preenchimento do plano'!N50","v":0},"x",{"$f":"'1 - Preenchimento do plano'!C50","v":"Técnicas de Análise Química de Solo e Tecido Vegetal"},null,null,{"$f":"'1 - Preenchimento do plano'!B50","v":"TST170"},{"$f":"'1 - Preenchimento do plano'!D50","v":60},null,{"$f":"'1 - Preenchimento do plano'!S50","v":0},{"$f":"'1 - Preenchimento do plano'!N50","v":0}]
[{"$f":"'1 - Preenchimento do plano'!N51","v":0},"x",{"$f":"'1 - Preenchimento do plano'!C51","v":"Tópicos Especiais em Ciência do Solo"},null,null,{"$f":"'1 - Preenchimento do plano'!B51","v":"TES160"},{"$f":"'1 - Preenchimento do plano'!D51","v":30},null,{"$f":"'1 - Preenchimento do plano'!S51","v":0},{"$f":"'1 - Preenchimento do plano'!N51","v":0}]
[{"$f":"'1 - Preenchimento do plano'!N52","v":0},"x",{"$f":"'1 - Preenchimento do plano'!C52","v":"TECS - Análise Estatística de Dados Utilizando o Programa SAS"},null,null,{"$f":"'1 - Preenchimento do plano'!B52","v":"TESAED"},{"$f":"'1 - Preenchimento do plano'!D52","v":30},null,{"$f":"'1 - Preenchimento do plano'!S52","v":0},{"$f":"'1 - Preenchimento do plano'!N52","v":0}]
[{"$f":"'1 - Preenchimento do plano'!N53","v":0},"x",{"$f":"'1 - Preenchimento do plano'!C53","v":"TECS - Biologia do Solo"},null,null,{"$f":"'1 - Preenchimento do plano'!B53","v":"TESBSO"},{"$f":"'1 - Preenchimento do plano'!D53","v":30},null,{"$f":"'1 - Preenchimento do plano'!S53","v":0},{"$f":"'1 - Preenchimento do plano'!N53","v":0}]
[{"$f":"'1 - Preenchimento do plano'!N54","v":0},"x",{"$f":"'1 - Preenchimento do plano'!C54","v":"TECS - Dinâmica de fósforo no solo e ambiente"},null,null,{"$f":"'1 - Preenchimento do plano'!B54","v":"TESDFS"},{"$f":"'1 - Preenchimento do plano'!D54","v":30},null,{"$f":"'1 - Preenchimento do plano'!S54","v":0},{"$f":"'1 - Preenchimento do plano'!N54","v":0}]
[{"$f":"'1 - Preenchimento do plano'!N55","v":0},"x",{"$f":"'1 - Preenchimento do plano'!C55","v":"TECS - Estatística Aplicada ao Estudo de Caso"},null,null,{"$f":"'1 - Preenchimento do plano'!B55","v":"TESEAC"},{"$f":"'1 - Preenchimento do plano'!D55","v":30},null,{"$f":"'1 - Preenchimento do plano'!S55","v":0},{"$f":"'1 - Preenchimento do plano'!N55","v":0}]
[{"$f":"'1 - Preenchimento do plano'!N56","v":0},"x",{"$f":"'1 - Preenchimento do plano'!C56","v":"TECS - Etnopedologia"},null,null,{"$f":"'1 - Preenchimento do plano'!B56","v":"TESETN"},{"$f":"'1 - Preenchimento do plano'!D56","v":30},null,{"$f":"'1 - Preenchimento do plano'!S56","v":0},{"$f":"'1 - Preenchimento do plano'!N56","v":0}]
[{"$f":"'1 - Preenchimento do plano'!N57","v":0},"x",{"$f":"'1 - Preenchimento do plano'!C57","v":"TECS - Extensão Universitária em C. A.agrárias - Projeto Rondon"},null,null,{"$f":"'1 - Preenchimento do plano'!B57","v":"TECSPR"},{"$f":"'1 - Preenchimento do plano'!D57","v":30},null,{"$f":"'1 - Preenchimento do plano'!S57","v":0},{"$f":"'1 - Preenchimento do plano'!N57","v":0}]
[{"$f":"'1 - Preenchimento do plano'!N58","v":0},"x",{"$f":"'1 - Preenchimento do plano'!C58","v":"TECS - Fauna Edáfica"},null,null,{"$f":"'1 - Preenchimento do plano'!B58","v":"TESFAE"},{"$f":"'1 - Preenchimento do plano'!D58","v":30},null,{"$f":"'1 - Preenchimento do plano'!S58","v":0},{"$f":"'1 - Preenchimento do plano'!N58","v":0}]
[{"$f":"'1 - Preenchimento do plano'!N59","v":0},"x",{"$f":"'1 - Preenchimento do plano'!C59","v":"TECS - Física do Solo"},null,null,{"$f":"'1 - Preenchimento do plano'!B59","v":"TESFIS"},{"$f":"'1 - Preenchimento do plano'!D59","v":30},null,{"$f":"'1 - Preenchimento do plano'!S59","v":0},{"$f":"'1 - Preenchimento do plano'!N59","v":0}]
[{"$f":"'1 - Preenchimento do plano'!N60","v":0},"x",{"$f":"'1 - Preenchimento do plano'!C60","v":"TECS - Física /Compactação"},null,null,{"$f":"'1 - Preenchimento do plano'!B60","v":"TESFIC"},{"$f":"'1 - Preenchimento do plano'!D60","v":30},null,{"$f":"'1 - Preenchimento do plano'!S60","v":0},{"$f":"'1 - Preenchimento do plano'!N60","v":0}]
[{"$f":"'1 - Preenchimento do plano'!N61","v":0},"x",{"$f":"'1 - Preenchimento do plano'!C61","v":"TECS - Geoquímica de Metais Pesados"},null,null,{"$f":"'1 - Preenchimento do plano'!B61","v":"TESGMP"},{"$f":"'1 - Preenchimento do plano'!D61","v":30},null,{"$f":"'1 - Preenchimento do plano'!S61","v":0},{"$f":"'1 - Preenchimento do plano'!N61","v":0}]
[{"$f":"'1 - Preenchimento do plano'!N62","v":0},"x",{"$f":"'1 - Preenchimento do plano'!C62","v":"TECS - Geoquímica de Metais Pesados e Metalóides"},null,null,{"$f":"'1 - Preenchimento do plano'!B62","v":"TESGMM"},{"$f":"'1 - Preenchimento do plano'!D62","v":30},null,{"$f":"'1 - Preenchimento do plano'!S62","v":0},{"$f":"'1 - Preenchimento do plano'!N62","v":0}]
[{"$f":"'1 - Preenchimento do plano'!N63","v":0},"x",{"$f":"'1 - Preenchimento do plano'!C63","v":"TECS -Hidrologia"},null,null,{"$f":"'1 - Preenchimento do plano'!B63","v":"TESHDR"},{"$f":"'1 - Preenchimento do plano'!D63","v":30},null,{"$f":"'1 - Preenchimento do plano'!S63","v":0},{"$f":"'1 - Preenchimento do plano'!N63","v":0}]
[{"$f":"'1 - Preenchimento do plano'!N64","v":0},"x",{"$f":"'1 - Preenchimento do plano'!C64","v":"TECS - Levantamento e Classificação do Solo"},null,null,{"$f":"'1 - Preenchimento do plano'!B64","v":"TESLCS"},{"$f":"'1 - Preenchimento do plano'!D64","v":30},null,{"$f":"'1 - Preenchimento do plano'!S64","v":0},{"$f":"'1 - Preenchimento do plano'!N64","v":0}]
[{"$f":"'1 - Preenchimento do plano'!N65","v":0},"x",{"$f":"'1 - Preenchimento do plano'!C65","v":"TECS - Métodos Analíticos de Biologia do Solo"},null,null,{"$f":"'1 - Preenchimento do plano'!B65","v":"TESMAB"},{"$f":"'1 - Preenchimento do plano'!D65","v":30},null,{"$f":"'1 - Preenchimento do plano'!S65","v":0},{"$f":"'1 - Preenchimento do plano'!N65","v":0}]
[{"$f":"'1 - Preenchimento do plano'!N66","v":0},"x",{"$f":"'1 - Preenchimento do plano'!C66","v":"TECS - Métodos Analíticos em Microbiologia do Solo"},null,null,{"$f":"'1 - Preenchimento do plano'!B66","v":"TESMAM"},{"$f":"'1 - Preenchimento do plano'!D66","v":30},null,{"$f":"'1 - Preenchimento do plano'!S66","v":0},{"$f":"'1 - Preenchimento do plano'!N66","v":0}]
[{"$f":"'1 - Preenchimento do plano'!N67","v":0},"x",{"$f":"'1 - Preenchimento do plano'!C67","v":"TECS - Mineralogia das Argilas"},null,null,{"$f":"'1 - Preenchimento do plano'!B67","v":"TESMIA"},{"$f":"'1 - Preenchimento do plano'!D67","v":30},null,{"$f":"'1 - Preenchimento do plano'!S67","v":0},{"$f":"'1 - Preenchimento do plano'!N67","v":0}]
[{"$f":"'1 - Preenchimento do plano'!N68","v":0},"x",{"$f":"'1 - Preenchimento do plano'!C68","v":"TECS - Mineralogia do Solo"},null,null,{"$f":"'1 - Preenchimento do plano'!B68","v":"TESMIS"},{"$f":"'1 - Preenchimento do plano'!D68","v":30},null,{"$f":"'1 - Preenchimento do plano'!S68","v":0},{"$f":"'1 - Preenchimento do plano'!N68","v":0}]
[{"$f":"'1 - Preenchimento do plano'!N69","v":0},"x",{"$f":"'1 - Preenchimento do plano'!C69","v":"TECS - Nivelamento em Química"},null,null,{"$f":"'1 - Preenchimento do plano'!B69","v":"TESNIQ"},{"$f":"'1 - Preenchimento do plano'!D69","v":30},null,{"$f":"'1 - Preenchimento do plano'!S69","v":0},{"$f":"'1 - Preenchimento do plano'!N69","v":0}]
[{"$f":"'1 - Preenchimento do plano'!N70","v":0},"x",{"$f":"'1 - Preenchimento do plano'!C70","v":"TECS - Nutrição Mineral de Frutíferas"},null,null,{"$f":"'1 - Preenchimento do plano'!B70","v":"TESNMF"},{"$f":"'1 - Preenchimento do plano'!D70","v":30},null,{"$f":"'1 - Preenchimento do plano'!S70","v":0},{"$f":"'1 - Preenchimento do plano'!N70","v":0}]
[{"$f":"'1 - Preenchimento do plano'!N71","v":0},"x",{"$f":"'1 - Preenchimento do plano'!C71","v":"TECS - Pesquisas em Erosão Hídrica"},null,null,{"$f":"'1 - Preenchimento do plano'!B71","v":"TESPEH"},{"$f":"'1 - Preenchimento do plano'!D71","v":30},null,{"$f":"'1 - Preenchimento do plano'!S71","v":0},{"$f":"'1 - Preenchimento do plano'!N71","v":0}]
[{"$f":"'1 - Preenchimento do plano'!N72","v":0},"x",{"$f":"'1 - Preenchimento do plano'!C72","v":"TECS - Técnicas de Pesquisa em Erosão"},null,null,{"$f":"'1 - Preenchimento do plano'!B72","v":"TESTPE"},{"$f":"'1 - Preenchimento do plano'!D72","v":30},null,{"$f":"'1 - Preenchimento do plano'!S72","v":0},{"$f":"'1 - Preenchimento do plano'!N72","v":0}]
[{"$f":"'1 - Preenchimento do plano'!N73","v":0},"x",{"$f":"'1 - Preenchimento do plano'!C73","v":"TECS - Técnicas de Redação e de Apresentação de Trabalhos Científicos"},null,null,{"$f":"'1 - Preenchimento do plano'!B73","v":"TESTRT"},{"$f":"'1 - Preenchimento do plano'!D73","v":30},null,{"$f":"'1 - Preenchimento do plano'!S73","v":0},{"$f":"'1 - Preenchimento do plano'!N73","v":0}]
[{"$f":"'1 - Preenchimento do plano'!N74","v":0},"x",{"$f":"'1 - Preenchimento do plano'!C74","v":"TECS - Uso e Conservação do Solo"},null,null,{"$f":"'1 - Preenchimento do plano'!B74","v":"TESUCS"},{"$f":"'1 - Preenchimento do plano'!D74","v":30},null,{"$f":"'1 - Preenchimento do plano'!S74","v":0},{"$f":"'1 - Preenchimento do plano'!N74","v":0}]
[{"$f":"'1 - Preenchimento do plano'!N75","v":0},"x",{"$f":"'1 - Preenchimento do plano'!C75","v":"TECS (Análise de Dados em Ecologia - Modelos Lineares General.)"},null,null,{"$f":"'1 - Preenchimento do plano'!B75","v":"TCSADE"},{"$f":"'1 - Preenchimento do plano'!D75","v":30},null,{"$f":"'1 - Preenchimento do plano'!S75","v":0},{"$f":"'1 - Preenchimento do plano'!N75","v":0}]
[{"$f":"'1 - Preenchimento do plano'!N76","v":0},"x",{"$f":"'1 - Preenchimento do plano'!C76","v":"TECS - Aplicada à Produção Florestal"},null,null,{"$f":"'1 - Preenchimento do plano'!B76","v":"TECSAP"},{"$f":"'1 - Preenchimento do plano'!D76","v":30},null,{"$f":"'1 - Preenchimento do plano'!S76","v":0},{"$f":"'1 - Preenchimento do plano'!N76","v":0}]
[{"$f":"'1 - Preenchimento do plano'!N77","v":0},"x",{"$f":"'1 - Preenchimento do plano'!C77","v":"TECS -  Avaliação de Risco Ecológico de Locais Contaminados"},null,null,{"$f":"'1 - Preenchimento do plano'!B77","v":"TESARC"},{"$f":"'1 - Preenchimento do plano'!D77","v":30},null,{"$f":"'1 - Preenchimento do plano'!S77","v":0},{"$f":"'1 - Preenchimento do plano'!N77","v":0}]
[{"$f":"'1 - Preenchimento do plano'!N78","v":0},"x",{"$f":"'1 - Preenchimento do plano'!C78","v":"TECS - Ecotoxicologia e Análise de Risco Ecológico"},null,null,{"$f":"'1 - Preenchimento do plano'!B78","v":"TESEAR"},{"$f":"'1 - Preenchimento do plano'!D78","v":30},null,{"$f":"'1 - Preenchimento do plano'!S78","v":0},{"$f":"'1 - Preenchimento do plano'!N78","v":0}]
[{"$f":"'1 - Preenchimento do plano'!N79","v":0},"x",{"$f":"'1 - Preenchimento do plano'!C79","v":"TECS - A Utilização de Ensaios em Mesocosmos como Ferram..."},null,null,{"$f":"'1 - Preenchimento do plano'!B79","v":"TCSUEM"},{"$f":"'1 - Preenchimento do plano'!D79","v":30},null,{"$f":"'1 - Preenchimento do plano'!S79","v":0},{"$f":"'1 - Preenchimento do plano'!N79","v":0}]
[{"$f":"'1 - Preenchimento do plano'!N80","v":0},"x",{"$f":"'1 - Preenchimento do plano'!C80","v":"TECS - Métodos de Análises Físicas"},null,null,{"$f":"'1 - Preenchimento do plano'!B80","v":"TESMAF"},{"$f":"'1 - Preenchimento do plano'!D80","v":30},null,{"$f":"'1 - Preenchimento do plano'!S80","v":0},{"$f":"'1 - Preenchimento do plano'!N80","v":0}]
[{"$f":"'1 - Preenchimento do plano'!N84","v":0},"x",{"$f":"'1 - Preenchimento do plano'!C84","v":"Estatística - Nivelamento"},null,null,{"$f":"'1 - Preenchimento do plano'!B84","v":"ESTATI"},{"$f":"'1 - Preenchimento do plano'!D84","v":30},null,{"$f":"'1 - Preenchimento do plano'!S84","v":0},{"$f":"'1 - Preenchimento do plano'!N84","v":0}]
[{"$f":"'1 - Preenchimento do plano'!N85","v":0},"x",{"$f":"'1 - Preenchimento do plano'!C85","v":"Redação e Apresentação de Trabalhos Científicos"},null,null,{"$f":"'1 - Preenchimento do plano'!B85","v":"REDATC"},{"$f":"'1 - Preenchimento do plano'!D85","v":30},null,{"$f":"'1 - Preenchimento do plano'!S85","v":0},{"$f":"'1 - Preenchimento do plano'!N85","v":0}]
[{"$f":"'1 - Preenchimento do plano'!N86","v":0},"x",{"$f":"'1 - Preenchimento do plano'!C86","v":"Estatística Experimental e Análise Multivariada"},null,null,{"$f":"'1 - Preenchimento do plano'!B86","v":"ESTEAM"},{"$f":"'1 - Preenchimento do plano'!D86","v":60},null,{"$f":"'1 - Preenchimento do plano'!S86","v":0},{"$f":"'1 - Preenchimento do plano'!N86","v":0}]
[{"$f":"'1 - Preenchimento do plano'!N87","v":0},"x",{"$f":"'1 - Preenchimento do plano'!C87","v":"Fundamentos do Manejo de Plantas de Lavoura"},null,null,{"$f":"'1 - Preenchimento do plano'!B87","v":"FMAPLA"},{"$f":"'1 - Preenchimento do plano'!D87","v":60},null,{"$f":"'1 - Preenchimento do plano'!S87","v":0},{"$f":"'1 - Preenchimento do plano'!N87","v":0}]
[{"$f":"'1 - Preenchimento do plano'!N88","v":0},"x",{"$f":"'1 - Preenchimento do plano'!C88","v":"Metodologia do Ensino Superior"},null,null,{"$f":"'1 - Preenchimento do plano'!B88","v":"METENS"},{"$f":"'1 - Preenchimento do plano'!D88","v":60},null,{"$f":"'1 - Preenchimento do plano'!S88","v":0},{"$f":"'1 - Preenchimento do plano'!N88","v":0}]
[{"$f":"'1 - Preenchimento do plano'!N89","v":0},"x",{"$f":"'1 - Preenchimento do plano'!C89","v":"Modelos Biométricos Aplicados à Agronomia"},null,null,{"$f":"'1 - Preenchimento do plano'!B89","v":"MOBAPA"},{"$f":"'1 - Preenchimento do plano'!D89","v":60},null,{"$f":"'1 - Preenchimento do plano'!S89","v":0},{"$f":"'1 - Preenchimento do plano'!N89","v":0}]
[{"$f":"'1 - Preenchimento do plano'!S97","v":0},"x",{"$f":"'1 - Preenchimento do plano'!C97","v":0},null,null,"x","x",null,{"$f":"'1 - Preenchimento do plano'!S97","v":0},{"$f":"A607","v":0}]
[{"$f":"'1 - Preenchimento do plano'!S98","v":0},"x",{"$f":"'1 - Preenchimento do plano'!C98","v":0},null,null,"x","x",null,{"$f":"'1 - Preenchimento do plano'!S98","v":0},{"$f":"A608","v":0}]
[{"$f":"'1 - Preenchimento do plano'!S99","v":0},"x",{"$f":"'1 - Preenchimento do plano'!C99","v":0},null,null,"x","x",null,{"$f":"'1 - Preenchimento do plano'!S99","v":0},0]
[{"$f":"'1 - Preenchimento do plano'!S100","v":0},"x",{"$f":"'1 - Preenchimento do plano'!C100","v":0},null,null,"x","x",null,{"$f":"'1 - Preenchimento do plano'!S100","v":0},0]
[{"$f":"'1 - Preenchimento do plano'!S101","v":0},"x",{"$f":"'1 - Preenchimento do plano'!C101","v":0},null,null,"x","x",null,{"$f":"'1 - Preenchimento do plano'!S101","v":0},0]
[{"$f":"'1 - Preenchimento do plano'!S102","v":0},"x",{"$f":"'1 - Preenchimento do plano'!C102","v":0},null,null,"x","x",null,{"$f":"'1 - Preenchimento do plano'!S102","v":0},0]
[{"$f":"'1 - Preenchimento do plano'!S103","v":0},"x",{"$f":"'1 - Preenchimento do plano'!C103","v":0},null,null,"x","x",null,{"$f":"'1 - Preenchimento do plano'!S103","v":0},0]
[{"$f":"'1 - Preenchimento do plano'!S104","v":0},"x",{"$f":"'1 - Preenchimento do plano'!C104","v":0},null,null,"x","x",null,{"$f":"'1 - Preenchimento do plano'!S104","v":0},0]
[{"$f":"'1 - Preenchimento do plano'!S105","v":0},"x",{"$f":"'1 - Preenchimento do plano'!C105","v":0},null,null,"x","x",null,{"$f":"'1 - Preenchimento do plano'!S105","v":0},0]
[{"$f":"'1 - Preenchimento do plano'!S106","v":0},"x",{"$f":"'1 - Preenchimento do plano'!C106","v":0},null,null,"x","x",null,{"$f":"'1 - Preenchimento do plano'!S106","v":0},0]
[{"$f":"'1 - Preenchimento do plano'!S107","v":0},"x",{"$f":"'1 - Preenchimento do plano'!C107","v":0},null,null,"x","x",null,{"$f":"'1 - Preenchimento do plano'!S107","v":0},0]
[{"$f":"'1 - Preenchimento do plano'!S108","v":0},"x",{"$f":"'1 - Preenchimento do plano'!C108","v":0},null,null,"x","x",null,{"$f":"'1 - Preenchimento do plano'!S108","v":0},0]
[{"$f":"'1 - Preenchimento do plano'!S109","v":0},"x",{"$f":"'1 - Preenchimento do plano'!C109","v":0},null,null,"x","x",null,{"$f":"'1 - Preenchimento do plano'!S109","v":0},0]
[{"$f":"'1 - Preenchimento do plano'!S110","v":0},"x",{"$f":"'1 - Preenchimento do plano'!C110","v":0},null,null,"x","x",null,{"$f":"'1 - Preenchimento do plano'!S110","v":0},0]
[null,null,null,null,null,"TOTAL:",null,null,{"$f":"'1 - Preenchimento do plano'!S111","v":0},1]

{"sheet":"3 - Justificativa membro ext.","index":3,"n_rows":19,"n_cols":9,"rows_kept":19,"cut":false,"hidden":false,"merged":[]}
[]
[]
[]
[]
[]
[]
[]
[]
[]
[]
[]
[]
[]
[null,"Nome:",{"$f":"'1 - Preenchimento do plano'!C8","v":0},null,null,"Matrícula:",{"$f":"'1 - Preenchimento do plano'!C9","v":0}]
[]
[null,"Comitê de Orientação"]
[null,"Orientador:",{"$f":"'1 - Preenchimento do plano'!C12","v":0},null,null,"Ingresso:",{"$f":"'1 - Preenchimento do plano'!AB10","v":0},"/",{"$f":"'1 - Preenchimento do plano'!AB11","v":0}]
[null,"2º Membro:",{"$f":"'1 - Preenchimento do plano'!C13","v":0}]
[null,"3º Membro:",{"$f":"'1 - Preenchimento do plano'!C14","v":0}]